Workbook

Sheet Лист1
C1: 08:00:00 | D1: 08:15:00 | E1: 08:30:00 | F1: 08:45:00 | G1: 09:00:00 | H1: 09:15:00 | I1: 09:30:00 | J1: 09:45:00 | K1: 10:00:00 | L1: 10:15:00 | M1: 10:30:00 | N1: 10:45:00 | O1: 11:00:00 | P1: 11:15:00 | Q1: 11:30:00 | R1: 11:45:00 | S1: 12:00:00 | T1: 12:15:00 | U1: 12:30:00 | V1: 12:45:00 | W1: 13:00:00 | X1: 13:15:00 | Y1: 13:30:00 | Z1: 13:45:00 | AA1: 14:00:00 | AB1: 14:15:00 | AC1: 14:30:00 | AD1: 14:45:00 | AE1: 15:00:00 | AF1: 15:15:00 | AG1: 15:30:00 | AH1: 15:45:00 | AI1: 16:00:00 | AJ1: 16:15:00 | AK1: 16:30:00 | AL1: 16:45:00 | AM1: 17:00:00 | AN1: 17:15:00 | AO1: 17:30:00 | AP1: 17:45:00 | AQ1: 18:00:00 | AR1: 18:15:00 | AS1: 18:30:00 | AT1: 18:45:00 | AU1: 19:00:00 | AV1: 19:15:00 | AW1: 19:30:00 | AX1: 19:45:00 | AY1: 20:00:00
A2: ЛВП х2 По плану | C2: =IFERROR(TEXT(MOD(INDEX(Лист2!$B$1:$B$14,LARGE((MOD(Лист2!$B$2:$B$13,1)>=C$1)*(MOD(Лист2!$B$2:$B$13,1)<D$1)*(Лист2!$C$2:$C$13="z")*ROW(Лист2!$B$2:$B$13),SUMPRODUCT((MOD(Лист2!$B$2:$B$13,1)>=C$1)*(MOD(Лист2!$B$2:$B$13,1)<D$1)*(Лист2!$C$2:$C$13="z"))-ROW(Лист1!A1)+1)),1),"ч:мм "),"") ->  | D2: =IFERROR(TEXT(MOD(INDEX(Лист2!$B$1:$B$14,LARGE((MOD(Лист2!$B$2:$B$13,1)>=D$1)*(MOD(Лист2!$B$2:$B$13,1)<E$1)*(Лист2!$C$2:$C$13="z")*ROW(Лист2!$B$2:$B$13),SUMPRODUCT((MOD(Лист2!$B$2:$B$13,1)>=D$1)*(MOD(Лист2!$B$2:$B$13,1)<E$1)*(Лист2!$C$2:$C$13="z"))-ROW(Лист1!B1)+1)),1),"ч:мм "),"") -> 8:18 | E2: =IFERROR(TEXT(MOD(INDEX(Лист2!$B$1:$B$14,LARGE((MOD(Лист2!$B$2:$B$13,1)>=E$1)*(MOD(Лист2!$B$2:$B$13,1)<F$1)*(Лист2!$C$2:$C$13="z")*ROW(Лист2!$B$2:$B$13),SUMPRODUCT((MOD(Лист2!$B$2:$B$13,1)>=E$1)*(MOD(Лист2!$B$2:$B$13,1)<F$1)*(Лист2!$C$2:$C$13="z"))-ROW(Лист1!C1)+1)),1),"ч:мм "),"") ->  | F2: =IFERROR(TEXT(MOD(INDEX(Лист2!$B$1:$B$14,LARGE((MOD(Лист2!$B$2:$B$13,1)>=F$1)*(MOD(Лист2!$B$2:$B$13,1)<G$1)*(Лист2!$C$2:$C$13="z")*ROW(Лист2!$B$2:$B$13),SUMPRODUCT((MOD(Лист2!$B$2:$B$13,1)>=F$1)*(MOD(Лист2!$B$2:$B$13,1)<G$1)*(Лист2!$C$2:$C$13="z"))-ROW(Лист1!D1)+1)),1),"ч:мм "),"") ->  | G2: =IFERROR(TEXT(MOD(INDEX(Лист2!$B$1:$B$14,LARGE((MOD(Лист2!$B$2:$B$13,1)>=G$1)*(MOD(Лист2!$B$2:$B$13,1)<H$1)*(Лист2!$C$2:$C$13="z")*ROW(Лист2!$B$2:$B$13),SUMPRODUCT((MOD(Лист2!$B$2:$B$13,1)>=G$1)*(MOD(Лист2!$B$2:$B$13,1)<H$1)*(Лист2!$C$2:$C$13="z"))-ROW(Лист1!E1)+1)),1),"ч:мм "),"") ->  | H2: =IFERROR(TEXT(MOD(INDEX(Лист2!$B$1:$B$14,LARGE((MOD(Лист2!$B$2:$B$13,1)>=H$1)*(MOD(Лист2!$B$2:$B$13,1)<I$1)*(Лист2!$C$2:$C$13="z")*ROW(Лист2!$B$2:$B$13),SUMPRODUCT((MOD(Лист2!$B$2:$B$13,1)>=H$1)*(MOD(Лист2!$B$2:$B$13,1)<I$1)*(Лист2!$C$2:$C$13="z"))-ROW(Лист1!F1)+1)),1),"ч:мм "),"") ->  | I2: =IFERROR(TEXT(MOD(INDEX(Лист2!$B$1:$B$14,LARGE((MOD(Лист2!$B$2:$B$13,1)>=I$1)*(MOD(Лист2!$B$2:$B$13,1)<J$1)*(Лист2!$C$2:$C$13="z")*ROW(Лист2!$B$2:$B$13),SUMPRODUCT((MOD(Лист2!$B$2:$B$13,1)>=I$1)*(MOD(Лист2!$B$2:$B$13,1)<J$1)*(Лист2!$C$2:$C$13="z"))-ROW(Лист1!G1)+1)),1),"ч:мм "),"") -> 9:44 | J2: =IFERROR(TEXT(MOD(INDEX(Лист2!$B$1:$B$14,LARGE((MOD(Лист2!$B$2:$B$13,1)>=J$1)*(MOD(Лист2!$B$2:$B$13,1)<K$1)*(Лист2!$C$2:$C$13="z")*ROW(Лист2!$B$2:$B$13),SUMPRODUCT((MOD(Лист2!$B$2:$B$13,1)>=J$1)*(MOD(Лист2!$B$2:$B$13,1)<K$1)*(Лист2!$C$2:$C$13="z"))-ROW(Лист1!H1)+1)),1),"ч:мм "),"") ->  | K2: =IFERROR(TEXT(MOD(INDEX(Лист2!$B$1:$B$14,LARGE((MOD(Лист2!$B$2:$B$13,1)>=K$1)*(MOD(Лист2!$B$2:$B$13,1)<L$1)*(Лист2!$C$2:$C$13="z")*ROW(Лист2!$B$2:$B$13),SUMPRODUCT((MOD(Лист2!$B$2:$B$13,1)>=K$1)*(MOD(Лист2!$B$2:$B$13,1)<L$1)*(Лист2!$C$2:$C$13="z"))-ROW(Лист1!I1)+1)),1),"ч:мм "),"") ->  | L2: =IFERROR(TEXT(MOD(INDEX(Лист2!$B$1:$B$14,LARGE((MOD(Лист2!$B$2:$B$13,1)>=L$1)*(MOD(Лист2!$B$2:$B$13,1)<M$1)*(Лист2!$C$2:$C$13="z")*ROW(Лист2!$B$2:$B$13),SUMPRODUCT((MOD(Лист2!$B$2:$B$13,1)>=L$1)*(MOD(Лист2!$B$2:$B$13,1)<M$1)*(Лист2!$C$2:$C$13="z"))-ROW(Лист1!J1)+1)),1),"ч:мм "),"") ->  | M2: =IFERROR(TEXT(MOD(INDEX(Лист2!$B$1:$B$14,LARGE((MOD(Лист2!$B$2:$B$13,1)>=M$1)*(MOD(Лист2!$B$2:$B$13,1)<N$1)*(Лист2!$C$2:$C$13="z")*ROW(Лист2!$B$2:$B$13),SUMPRODUCT((MOD(Лист2!$B$2:$B$13,1)>=M$1)*(MOD(Лист2!$B$2:$B$13,1)<N$1)*(Лист2!$C$2:$C$13="z"))-ROW(Лист1!K1)+1)),1),"ч:мм "),"") ->  | N2: =IFERROR(TEXT(MOD(INDEX(Лист2!$B$1:$B$14,LARGE((MOD(Лист2!$B$2:$B$13,1)>=N$1)*(MOD(Лист2!$B$2:$B$13,1)<O$1)*(Лист2!$C$2:$C$13="z")*ROW(Лист2!$B$2:$B$13),SUMPRODUCT((MOD(Лист2!$B$2:$B$13,1)>=N$1)*(MOD(Лист2!$B$2:$B$13,1)<O$1)*(Лист2!$C$2:$C$13="z"))-ROW(Лист1!L1)+1)),1),"ч:мм "),"") ->  | O2: =IFERROR(TEXT(MOD(INDEX(Лист2!$B$1:$B$14,LARGE((MOD(Лист2!$B$2:$B$13,1)>=O$1)*(MOD(Лист2!$B$2:$B$13,1)<P$1)*(Лист2!$C$2:$C$13="z")*ROW(Лист2!$B$2:$B$13),SUMPRODUCT((MOD(Лист2!$B$2:$B$13,1)>=O$1)*(MOD(Лист2!$B$2:$B$13,1)<P$1)*(Лист2!$C$2:$C$13="z"))-ROW(Лист1!M1)+1)),1),"ч:мм "),"") -> 11:11 | P2: =IFERROR(TEXT(MOD(INDEX(Лист2!$B$1:$B$14,LARGE((MOD(Лист2!$B$2:$B$13,1)>=P$1)*(MOD(Лист2!$B$2:$B$13,1)<Q$1)*(Лист2!$C$2:$C$13="z")*ROW(Лист2!$B$2:$B$13),SUMPRODUCT((MOD(Лист2!$B$2:$B$13,1)>=P$1)*(MOD(Лист2!$B$2:$B$13,1)<Q$1)*(Лист2!$C$2:$C$13="z"))-ROW(Лист1!N1)+1)),1),"ч:мм "),"") ->  | Q2: =IFERROR(TEXT(MOD(INDEX(Лист2!$B$1:$B$14,LARGE((MOD(Лист2!$B$2:$B$13,1)>=Q$1)*(MOD(Лист2!$B$2:$B$13,1)<R$1)*(Лист2!$C$2:$C$13="z")*ROW(Лист2!$B$2:$B$13),SUMPRODUCT((MOD(Лист2!$B$2:$B$13,1)>=Q$1)*(MOD(Лист2!$B$2:$B$13,1)<R$1)*(Лист2!$C$2:$C$13="z"))-ROW(Лист1!O1)+1)),1),"ч:мм "),"") ->  | R2: =IFERROR(TEXT(MOD(INDEX(Лист2!$B$1:$B$14,LARGE((MOD(Лист2!$B$2:$B$13,1)>=R$1)*(MOD(Лист2!$B$2:$B$13,1)<S$1)*(Лист2!$C$2:$C$13="z")*ROW(Лист2!$B$2:$B$13),SUMPRODUCT((MOD(Лист2!$B$2:$B$13,1)>=R$1)*(MOD(Лист2!$B$2:$B$13,1)<S$1)*(Лист2!$C$2:$C$13="z"))-ROW(Лист1!P1)+1)),1),"ч:мм "),"") ->  | S2: =IFERROR(TEXT(MOD(INDEX(Лист2!$B$1:$B$14,LARGE((MOD(Лист2!$B$2:$B$13,1)>=S$1)*(MOD(Лист2!$B$2:$B$13,1)<T$1)*(Лист2!$C$2:$C$13="z")*ROW(Лист2!$B$2:$B$13),SUMPRODUCT((MOD(Лист2!$B$2:$B$13,1)>=S$1)*(MOD(Лист2!$B$2:$B$13,1)<T$1)*(Лист2!$C$2:$C$13="z"))-ROW(Лист1!Q1)+1)),1),"ч:мм "),"") ->  | T2: =IFERROR(TEXT(MOD(INDEX(Лист2!$B$1:$B$14,LARGE((MOD(Лист2!$B$2:$B$13,1)>=T$1)*(MOD(Лист2!$B$2:$B$13,1)<U$1)*(Лист2!$C$2:$C$13="z")*ROW(Лист2!$B$2:$B$13),SUMPRODUCT((MOD(Лист2!$B$2:$B$13,1)>=T$1)*(MOD(Лист2!$B$2:$B$13,1)<U$1)*(Лист2!$C$2:$C$13="z"))-ROW(Лист1!R1)+1)),1),"ч:мм "),"") ->  | U2: =IFERROR(TEXT(MOD(INDEX(Лист2!$B$1:$B$14,LARGE((MOD(Лист2!$B$2:$B$13,1)>=U$1)*(MOD(Лист2!$B$2:$B$13,1)<V$1)*(Лист2!$C$2:$C$13="z")*ROW(Лист2!$B$2:$B$13),SUMPRODUCT((MOD(Лист2!$B$2:$B$13,1)>=U$1)*(MOD(Лист2!$B$2:$B$13,1)<V$1)*(Лист2!$C$2:$C$13="z"))-ROW(Лист1!S1)+1)),1),"ч:мм "),"") -> 12:38 | V2: =IFERROR(TEXT(MOD(INDEX(Лист2!$B$1:$B$14,LARGE((MOD(Лист2!$B$2:$B$13,1)>=V$1)*(MOD(Лист2!$B$2:$B$13,1)<W$1)*(Лист2!$C$2:$C$13="z")*ROW(Лист2!$B$2:$B$13),SUMPRODUCT((MOD(Лист2!$B$2:$B$13,1)>=V$1)*(MOD(Лист2!$B$2:$B$13,1)<W$1)*(Лист2!$C$2:$C$13="z"))-ROW(Лист1!T1)+1)),1),"ч:мм "),"") ->  | W2: =IFERROR(TEXT(MOD(INDEX(Лист2!$B$1:$B$14,LARGE((MOD(Лист2!$B$2:$B$13,1)>=W$1)*(MOD(Лист2!$B$2:$B$13,1)<X$1)*(Лист2!$C$2:$C$13="z")*ROW(Лист2!$B$2:$B$13),SUMPRODUCT((MOD(Лист2!$B$2:$B$13,1)>=W$1)*(MOD(Лист2!$B$2:$B$13,1)<X$1)*(Лист2!$C$2:$C$13="z"))-ROW(Лист1!U1)+1)),1),"ч:мм "),"") ->  | X2: =IFERROR(TEXT(MOD(INDEX(Лист2!$B$1:$B$14,LARGE((MOD(Лист2!$B$2:$B$13,1)>=X$1)*(MOD(Лист2!$B$2:$B$13,1)<Y$1)*(Лист2!$C$2:$C$13="z")*ROW(Лист2!$B$2:$B$13),SUMPRODUCT((MOD(Лист2!$B$2:$B$13,1)>=X$1)*(MOD(Лист2!$B$2:$B$13,1)<Y$1)*(Лист2!$C$2:$C$13="z"))-ROW(Лист1!V1)+1)),1),"ч:мм "),"") ->  | Y2: =IFERROR(TEXT(MOD(INDEX(Лист2!$B$1:$B$14,LARGE((MOD(Лист2!$B$2:$B$13,1)>=Y$1)*(MOD(Лист2!$B$2:$B$13,1)<Z$1)*(Лист2!$C$2:$C$13="z")*ROW(Лист2!$B$2:$B$13),SUMPRODUCT((MOD(Лист2!$B$2:$B$13,1)>=Y$1)*(MOD(Лист2!$B$2:$B$13,1)<Z$1)*(Лист2!$C$2:$C$13="z"))-ROW(Лист1!W1)+1)),1),"ч:мм "),"") ->  | Z2: =IFERROR(TEXT(MOD(INDEX(Лист2!$B$1:$B$14,LARGE((MOD(Лист2!$B$2:$B$13,1)>=Z$1)*(MOD(Лист2!$B$2:$B$13,1)<AA$1)*(Лист2!$C$2:$C$13="z")*ROW(Лист2!$B$2:$B$13),SUMPRODUCT((MOD(Лист2!$B$2:$B$13,1)>=Z$1)*(MOD(Лист2!$B$2:$B$13,1)<AA$1)*(Лист2!$C$2:$C$13="z"))-ROW(Лист1!X1)+1)),1),"ч:мм "),"") ->  | AA2: =IFERROR(TEXT(MOD(INDEX(Лист2!$B$1:$B$14,LARGE((MOD(Лист2!$B$2:$B$13,1)>=AA$1)*(MOD(Лист2!$B$2:$B$13,1)<AB$1)*(Лист2!$C$2:$C$13="z")*ROW(Лист2!$B$2:$B$13),SUMPRODUCT((MOD(Лист2!$B$2:$B$13,1)>=AA$1)*(MOD(Лист2!$B$2:$B$13,1)<AB$1)*(Лист2!$C$2:$C$13="z"))-ROW(Лист1!Y1)+1)),1),"ч:мм "),"") -> 14:04 | AB2: =IFERROR(TEXT(MOD(INDEX(Лист2!$B$1:$B$14,LARGE((MOD(Лист2!$B$2:$B$13,1)>=AB$1)*(MOD(Лист2!$B$2:$B$13,1)<AC$1)*(Лист2!$C$2:$C$13="z")*ROW(Лист2!$B$2:$B$13),SUMPRODUCT((MOD(Лист2!$B$2:$B$13,1)>=AB$1)*(MOD(Лист2!$B$2:$B$13,1)<AC$1)*(Лист2!$C$2:$C$13="z"))-ROW(Лист1!Z1)+1)),1),"ч:мм "),"") ->  | AC2: =IFERROR(TEXT(MOD(INDEX(Лист2!$B$1:$B$14,LARGE((MOD(Лист2!$B$2:$B$13,1)>=AC$1)*(MOD(Лист2!$B$2:$B$13,1)<AD$1)*(Лист2!$C$2:$C$13="z")*ROW(Лист2!$B$2:$B$13),SUMPRODUCT((MOD(Лист2!$B$2:$B$13,1)>=AC$1)*(MOD(Лист2!$B$2:$B$13,1)<AD$1)*(Лист2!$C$2:$C$13="z"))-ROW(Лист1!AA1)+1)),1),"ч:мм "),"") ->  | AD2: =IFERROR(TEXT(MOD(INDEX(Лист2!$B$1:$B$14,LARGE((MOD(Лист2!$B$2:$B$13,1)>=AD$1)*(MOD(Лист2!$B$2:$B$13,1)<AE$1)*(Лист2!$C$2:$C$13="z")*ROW(Лист2!$B$2:$B$13),SUMPRODUCT((MOD(Лист2!$B$2:$B$13,1)>=AD$1)*(MOD(Лист2!$B$2:$B$13,1)<AE$1)*(Лист2!$C$2:$C$13="z"))-ROW(Лист1!AB1)+1)),1),"ч:мм "),"") ->  | AE2: =IFERROR(TEXT(MOD(INDEX(Лист2!$B$1:$B$14,LARGE((MOD(Лист2!$B$2:$B$13,1)>=AE$1)*(MOD(Лист2!$B$2:$B$13,1)<AF$1)*(Лист2!$C$2:$C$13="z")*ROW(Лист2!$B$2:$B$13),SUMPRODUCT((MOD(Лист2!$B$2:$B$13,1)>=AE$1)*(MOD(Лист2!$B$2:$B$13,1)<AF$1)*(Лист2!$C$2:$C$13="z"))-ROW(Лист1!AC1)+1)),1),"ч:мм "),"") ->  | AF2: =IFERROR(TEXT(MOD(INDEX(Лист2!$B$1:$B$14,LARGE((MOD(Лист2!$B$2:$B$13,1)>=AF$1)*(MOD(Лист2!$B$2:$B$13,1)<AG$1)*(Лист2!$C$2:$C$13="z")*ROW(Лист2!$B$2:$B$13),SUMPRODUCT((MOD(Лист2!$B$2:$B$13,1)>=AF$1)*(MOD(Лист2!$B$2:$B$13,1)<AG$1)*(Лист2!$C$2:$C$13="z"))-ROW(Лист1!AD1)+1)),1),"ч:мм "),"") ->  | AG2: =IFERROR(TEXT(MOD(INDEX(Лист2!$B$1:$B$14,LARGE((MOD(Лист2!$B$2:$B$13,1)>=AG$1)*(MOD(Лист2!$B$2:$B$13,1)<AH$1)*(Лист2!$C$2:$C$13="z")*ROW(Лист2!$B$2:$B$13),SUMPRODUCT((MOD(Лист2!$B$2:$B$13,1)>=AG$1)*(MOD(Лист2!$B$2:$B$13,1)<AH$1)*(Лист2!$C$2:$C$13="z"))-ROW(Лист1!AE1)+1)),1),"ч:мм "),"") -> 15:31 | AH2: =IFERROR(TEXT(MOD(INDEX(Лист2!$B$1:$B$14,LARGE((MOD(Лист2!$B$2:$B$13,1)>=AH$1)*(MOD(Лист2!$B$2:$B$13,1)<AI$1)*(Лист2!$C$2:$C$13="z")*ROW(Лист2!$B$2:$B$13),SUMPRODUCT((MOD(Лист2!$B$2:$B$13,1)>=AH$1)*(MOD(Лист2!$B$2:$B$13,1)<AI$1)*(Лист2!$C$2:$C$13="z"))-ROW(Лист1!AF1)+1)),1),"ч:мм "),"") ->  | AI2: =IFERROR(TEXT(MOD(INDEX(Лист2!$B$1:$B$14,LARGE((MOD(Лист2!$B$2:$B$13,1)>=AI$1)*(MOD(Лист2!$B$2:$B$13,1)<AJ$1)*(Лист2!$C$2:$C$13="z")*ROW(Лист2!$B$2:$B$13),SUMPRODUCT((MOD(Лист2!$B$2:$B$13,1)>=AI$1)*(MOD(Лист2!$B$2:$B$13,1)<AJ$1)*(Лист2!$C$2:$C$13="z"))-ROW(Лист1!AG1)+1)),1),"ч:мм "),"") ->  | AJ2: =IFERROR(TEXT(MOD(INDEX(Лист2!$B$1:$B$14,LARGE((MOD(Лист2!$B$2:$B$13,1)>=AJ$1)*(MOD(Лист2!$B$2:$B$13,1)<AK$1)*(Лист2!$C$2:$C$13="z")*ROW(Лист2!$B$2:$B$13),SUMPRODUCT((MOD(Лист2!$B$2:$B$13,1)>=AJ$1)*(MOD(Лист2!$B$2:$B$13,1)<AK$1)*(Лист2!$C$2:$C$13="z"))-ROW(Лист1!AH1)+1)),1),"ч:мм "),"") ->  | AK2: =IFERROR(TEXT(MOD(INDEX(Лист2!$B$1:$B$14,LARGE((MOD(Лист2!$B$2:$B$13,1)>=AK$1)*(MOD(Лист2!$B$2:$B$13,1)<AL$1)*(Лист2!$C$2:$C$13="z")*ROW(Лист2!$B$2:$B$13),SUMPRODUCT((MOD(Лист2!$B$2:$B$13,1)>=AK$1)*(MOD(Лист2!$B$2:$B$13,1)<AL$1)*(Лист2!$C$2:$C$13="z"))-ROW(Лист1!AI1)+1)),1),"ч:мм "),"") ->  | AL2: =IFERROR(TEXT(MOD(INDEX(Лист2!$B$1:$B$14,LARGE((MOD(Лист2!$B$2:$B$13,1)>=AL$1)*(MOD(Лист2!$B$2:$B$13,1)<AM$1)*(Лист2!$C$2:$C$13="z")*ROW(Лист2!$B$2:$B$13),SUMPRODUCT((MOD(Лист2!$B$2:$B$13,1)>=AL$1)*(MOD(Лист2!$B$2:$B$13,1)<AM$1)*(Лист2!$C$2:$C$13="z"))-ROW(Лист1!AJ1)+1)),1),"ч:мм "),"") -> 16:58 | AM2: =IFERROR(TEXT(MOD(INDEX(Лист2!$B$1:$B$14,LARGE((MOD(Лист2!$B$2:$B$13,1)>=AM$1)*(MOD(Лист2!$B$2:$B$13,1)<AN$1)*(Лист2!$C$2:$C$13="z")*ROW(Лист2!$B$2:$B$13),SUMPRODUCT((MOD(Лист2!$B$2:$B$13,1)>=AM$1)*(MOD(Лист2!$B$2:$B$13,1)<AN$1)*(Лист2!$C$2:$C$13="z"))-ROW(Лист1!AK1)+1)),1),"ч:мм "),"") ->  | AN2: =IFERROR(TEXT(MOD(INDEX(Лист2!$B$1:$B$14,LARGE((MOD(Лист2!$B$2:$B$13,1)>=AN$1)*(MOD(Лист2!$B$2:$B$13,1)<AO$1)*(Лист2!$C$2:$C$13="z")*ROW(Лист2!$B$2:$B$13),SUMPRODUCT((MOD(Лист2!$B$2:$B$13,1)>=AN$1)*(MOD(Лист2!$B$2:$B$13,1)<AO$1)*(Лист2!$C$2:$C$13="z"))-ROW(Лист1!AL1)+1)),1),"ч:мм "),"") ->  | AO2: =IFERROR(TEXT(MOD(INDEX(Лист2!$B$1:$B$14,LARGE((MOD(Лист2!$B$2:$B$13,1)>=AO$1)*(MOD(Лист2!$B$2:$B$13,1)<AP$1)*(Лист2!$C$2:$C$13="z")*ROW(Лист2!$B$2:$B$13),SUMPRODUCT((MOD(Лист2!$B$2:$B$13,1)>=AO$1)*(MOD(Лист2!$B$2:$B$13,1)<AP$1)*(Лист2!$C$2:$C$13="z"))-ROW(Лист1!AM1)+1)),1),"ч:мм "),"") ->  | AP2: =IFERROR(TEXT(MOD(INDEX(Лист2!$B$1:$B$14,LARGE((MOD(Лист2!$B$2:$B$13,1)>=AP$1)*(MOD(Лист2!$B$2:$B$13,1)<AQ$1)*(Лист2!$C$2:$C$13="z")*ROW(Лист2!$B$2:$B$13),SUMPRODUCT((MOD(Лист2!$B$2:$B$13,1)>=AP$1)*(MOD(Лист2!$B$2:$B$13,1)<AQ$1)*(Лист2!$C$2:$C$13="z"))-ROW(Лист1!AN1)+1)),1),"ч:мм "),"") ->  | AQ2: =IFERROR(TEXT(MOD(INDEX(Лист2!$B$1:$B$14,LARGE((MOD(Лист2!$B$2:$B$13,1)>=AQ$1)*(MOD(Лист2!$B$2:$B$13,1)<AR$1)*(Лист2!$C$2:$C$13="z")*ROW(Лист2!$B$2:$B$13),SUMPRODUCT((MOD(Лист2!$B$2:$B$13,1)>=AQ$1)*(MOD(Лист2!$B$2:$B$13,1)<AR$1)*(Лист2!$C$2:$C$13="z"))-ROW(Лист1!AO1)+1)),1),"ч:мм "),"") ->  | AR2: =IFERROR(TEXT(MOD(INDEX(Лист2!$B$1:$B$14,LARGE((MOD(Лист2!$B$2:$B$13,1)>=AR$1)*(MOD(Лист2!$B$2:$B$13,1)<AS$1)*(Лист2!$C$2:$C$13="z")*ROW(Лист2!$B$2:$B$13),SUMPRODUCT((MOD(Лист2!$B$2:$B$13,1)>=AR$1)*(MOD(Лист2!$B$2:$B$13,1)<AS$1)*(Лист2!$C$2:$C$13="z"))-ROW(Лист1!AP1)+1)),1),"ч:мм "),"") -> 18:24 | AS2: =IFERROR(TEXT(MOD(INDEX(Лист2!$B$1:$B$14,LARGE((MOD(Лист2!$B$2:$B$13,1)>=AS$1)*(MOD(Лист2!$B$2:$B$13,1)<AT$1)*(Лист2!$C$2:$C$13="z")*ROW(Лист2!$B$2:$B$13),SUMPRODUCT((MOD(Лист2!$B$2:$B$13,1)>=AS$1)*(MOD(Лист2!$B$2:$B$13,1)<AT$1)*(Лист2!$C$2:$C$13="z"))-ROW(Лист1!AQ1)+1)),1),"ч:мм "),"") ->  | AT2: =IFERROR(TEXT(MOD(INDEX(Лист2!$B$1:$B$14,LARGE((MOD(Лист2!$B$2:$B$13,1)>=AT$1)*(MOD(Лист2!$B$2:$B$13,1)<AU$1)*(Лист2!$C$2:$C$13="z")*ROW(Лист2!$B$2:$B$13),SUMPRODUCT((MOD(Лист2!$B$2:$B$13,1)>=AT$1)*(MOD(Лист2!$B$2:$B$13,1)<AU$1)*(Лист2!$C$2:$C$13="z"))-ROW(Лист1!AR1)+1)),1),"ч:мм "),"") ->  | AU2: =IFERROR(TEXT(MOD(INDEX(Лист2!$B$1:$B$14,LARGE((MOD(Лист2!$B$2:$B$13,1)>=AU$1)*(MOD(Лист2!$B$2:$B$13,1)<AV$1)*(Лист2!$C$2:$C$13="z")*ROW(Лист2!$B$2:$B$13),SUMPRODUCT((MOD(Лист2!$B$2:$B$13,1)>=AU$1)*(MOD(Лист2!$B$2:$B$13,1)<AV$1)*(Лист2!$C$2:$C$13="z"))-ROW(Лист1!AS1)+1)),1),"ч:мм "),"") ->  | AV2: =IFERROR(TEXT(MOD(INDEX(Лист2!$B$1:$B$14,LARGE((MOD(Лист2!$B$2:$B$13,1)>=AV$1)*(MOD(Лист2!$B$2:$B$13,1)<AW$1)*(Лист2!$C$2:$C$13="z")*ROW(Лист2!$B$2:$B$13),SUMPRODUCT((MOD(Лист2!$B$2:$B$13,1)>=AV$1)*(MOD(Лист2!$B$2:$B$13,1)<AW$1)*(Лист2!$C$2:$C$13="z"))-ROW(Лист1!AT1)+1)),1),"ч:мм "),"") ->  | AW2: =IFERROR(TEXT(MOD(INDEX(Лист2!$B$1:$B$14,LARGE((MOD(Лист2!$B$2:$B$13,1)>=AW$1)*(MOD(Лист2!$B$2:$B$13,1)<AX$1)*(Лист2!$C$2:$C$13="z")*ROW(Лист2!$B$2:$B$13),SUMPRODUCT((MOD(Лист2!$B$2:$B$13,1)>=AW$1)*(MOD(Лист2!$B$2:$B$13,1)<AX$1)*(Лист2!$C$2:$C$13="z"))-ROW(Лист1!AU1)+1)),1),"ч:мм "),"") ->  | AX2: =IFERROR(TEXT(MOD(INDEX(Лист2!$B$1:$B$14,LARGE((MOD(Лист2!$B$2:$B$13,1)>=AX$1)*(MOD(Лист2!$B$2:$B$13,1)<AY$1)*(Лист2!$C$2:$C$13="z")*ROW(Лист2!$B$2:$B$13),SUMPRODUCT((MOD(Лист2!$B$2:$B$13,1)>=AX$1)*(MOD(Лист2!$B$2:$B$13,1)<AY$1)*(Лист2!$C$2:$C$13="z"))-ROW(Лист1!AV1)+1)),1),"ч:мм "),"") -> 19:51 | AY2: =IFERROR(TEXT(MOD(INDEX(Лист2!$B$1:$B$14,LARGE((MOD(Лист2!$B$2:$B$13,1)>=AY$1)*(MOD(Лист2!$B$2:$B$13,1)<AZ$1)*(Лист2!$C$2:$C$13="z")*ROW(Лист2!$B$2:$B$13),SUMPRODUCT((MOD(Лист2!$B$2:$B$13,1)>=AY$1)*(MOD(Лист2!$B$2:$B$13,1)<AZ$1)*(Лист2!$C$2:$C$13="z"))-ROW(Лист1!AW1)+1)),1),"ч:мм "),"") -> 
A3: ЛВП х2 По факту
A6: Х120 По плану | C6: =IFERROR(TEXT(MOD(INDEX(Лист2!$D$1:$D$14,LARGE((MOD(Лист2!$D$2:$D$13,1)>=C$1)*(MOD(Лист2!$D$2:$D$13,1)<D$1)*(Лист2!$E$2:$E$13="y")*ROW(Лист2!$D$2:$D$13),SUMPRODUCT((MOD(Лист2!$D$2:$D$13,1)>=C$1)*(MOD(Лист2!$D$2:$D$13,1)<D$1)*(Лист2!$E$2:$E$13="y"))-ROW(Лист1!A1)+1)),1),"ч:мм "),"") ->  | D6: =IFERROR(TEXT(MOD(INDEX(Лист2!$D$1:$D$14,LARGE((MOD(Лист2!$D$2:$D$13,1)>=D$1)*(MOD(Лист2!$D$2:$D$13,1)<E$1)*(Лист2!$E$2:$E$13="y")*ROW(Лист2!$D$2:$D$13),SUMPRODUCT((MOD(Лист2!$D$2:$D$13,1)>=D$1)*(MOD(Лист2!$D$2:$D$13,1)<E$1)*(Лист2!$E$2:$E$13="y"))-ROW(Лист1!B1)+1)),1),"ч:мм "),"") -> 8:18 | E6: =IFERROR(TEXT(MOD(INDEX(Лист2!$D$1:$D$14,LARGE((MOD(Лист2!$D$2:$D$13,1)>=E$1)*(MOD(Лист2!$D$2:$D$13,1)<F$1)*(Лист2!$E$2:$E$13="y")*ROW(Лист2!$D$2:$D$13),SUMPRODUCT((MOD(Лист2!$D$2:$D$13,1)>=E$1)*(MOD(Лист2!$D$2:$D$13,1)<F$1)*(Лист2!$E$2:$E$13="y"))-ROW(Лист1!C1)+1)),1),"ч:мм "),"") ->  | F6: =IFERROR(TEXT(MOD(INDEX(Лист2!$D$1:$D$14,LARGE((MOD(Лист2!$D$2:$D$13,1)>=F$1)*(MOD(Лист2!$D$2:$D$13,1)<G$1)*(Лист2!$E$2:$E$13="y")*ROW(Лист2!$D$2:$D$13),SUMPRODUCT((MOD(Лист2!$D$2:$D$13,1)>=F$1)*(MOD(Лист2!$D$2:$D$13,1)<G$1)*(Лист2!$E$2:$E$13="y"))-ROW(Лист1!D1)+1)),1),"ч:мм "),"") ->  | G6: =IFERROR(TEXT(MOD(INDEX(Лист2!$D$1:$D$14,LARGE((MOD(Лист2!$D$2:$D$13,1)>=G$1)*(MOD(Лист2!$D$2:$D$13,1)<H$1)*(Лист2!$E$2:$E$13="y")*ROW(Лист2!$D$2:$D$13),SUMPRODUCT((MOD(Лист2!$D$2:$D$13,1)>=G$1)*(MOD(Лист2!$D$2:$D$13,1)<H$1)*(Лист2!$E$2:$E$13="y"))-ROW(Лист1!E1)+1)),1),"ч:мм "),"") ->  | H6: =IFERROR(TEXT(MOD(INDEX(Лист2!$D$1:$D$14,LARGE((MOD(Лист2!$D$2:$D$13,1)>=H$1)*(MOD(Лист2!$D$2:$D$13,1)<I$1)*(Лист2!$E$2:$E$13="y")*ROW(Лист2!$D$2:$D$13),SUMPRODUCT((MOD(Лист2!$D$2:$D$13,1)>=H$1)*(MOD(Лист2!$D$2:$D$13,1)<I$1)*(Лист2!$E$2:$E$13="y"))-ROW(Лист1!F1)+1)),1),"ч:мм "),"") ->  | I6: =IFERROR(TEXT(MOD(INDEX(Лист2!$D$1:$D$14,LARGE((MOD(Лист2!$D$2:$D$13,1)>=I$1)*(MOD(Лист2!$D$2:$D$13,1)<J$1)*(Лист2!$E$2:$E$13="y")*ROW(Лист2!$D$2:$D$13),SUMPRODUCT((MOD(Лист2!$D$2:$D$13,1)>=I$1)*(MOD(Лист2!$D$2:$D$13,1)<J$1)*(Лист2!$E$2:$E$13="y"))-ROW(Лист1!G1)+1)),1),"ч:мм "),"") ->  | J6: =IFERROR(TEXT(MOD(INDEX(Лист2!$D$1:$D$14,LARGE((MOD(Лист2!$D$2:$D$13,1)>=J$1)*(MOD(Лист2!$D$2:$D$13,1)<K$1)*(Лист2!$E$2:$E$13="y")*ROW(Лист2!$D$2:$D$13),SUMPRODUCT((MOD(Лист2!$D$2:$D$13,1)>=J$1)*(MOD(Лист2!$D$2:$D$13,1)<K$1)*(Лист2!$E$2:$E$13="y"))-ROW(Лист1!H1)+1)),1),"ч:мм "),"") ->  | K6: =IFERROR(TEXT(MOD(INDEX(Лист2!$D$1:$D$14,LARGE((MOD(Лист2!$D$2:$D$13,1)>=K$1)*(MOD(Лист2!$D$2:$D$13,1)<L$1)*(Лист2!$E$2:$E$13="y")*ROW(Лист2!$D$2:$D$13),SUMPRODUCT((MOD(Лист2!$D$2:$D$13,1)>=K$1)*(MOD(Лист2!$D$2:$D$13,1)<L$1)*(Лист2!$E$2:$E$13="y"))-ROW(Лист1!I1)+1)),1),"ч:мм "),"") -> 10:06 | L6: =IFERROR(TEXT(MOD(INDEX(Лист2!$D$1:$D$14,LARGE((MOD(Лист2!$D$2:$D$13,1)>=L$1)*(MOD(Лист2!$D$2:$D$13,1)<M$1)*(Лист2!$E$2:$E$13="y")*ROW(Лист2!$D$2:$D$13),SUMPRODUCT((MOD(Лист2!$D$2:$D$13,1)>=L$1)*(MOD(Лист2!$D$2:$D$13,1)<M$1)*(Лист2!$E$2:$E$13="y"))-ROW(Лист1!J1)+1)),1),"ч:мм "),"") ->  | M6: =IFERROR(TEXT(MOD(INDEX(Лист2!$D$1:$D$14,LARGE((MOD(Лист2!$D$2:$D$13,1)>=M$1)*(MOD(Лист2!$D$2:$D$13,1)<N$1)*(Лист2!$E$2:$E$13="y")*ROW(Лист2!$D$2:$D$13),SUMPRODUCT((MOD(Лист2!$D$2:$D$13,1)>=M$1)*(MOD(Лист2!$D$2:$D$13,1)<N$1)*(Лист2!$E$2:$E$13="y"))-ROW(Лист1!K1)+1)),1),"ч:мм "),"") ->  | N6: =IFERROR(TEXT(MOD(INDEX(Лист2!$D$1:$D$14,LARGE((MOD(Лист2!$D$2:$D$13,1)>=N$1)*(MOD(Лист2!$D$2:$D$13,1)<O$1)*(Лист2!$E$2:$E$13="y")*ROW(Лист2!$D$2:$D$13),SUMPRODUCT((MOD(Лист2!$D$2:$D$13,1)>=N$1)*(MOD(Лист2!$D$2:$D$13,1)<O$1)*(Лист2!$E$2:$E$13="y"))-ROW(Лист1!L1)+1)),1),"ч:мм "),"") ->  | O6: =IFERROR(TEXT(MOD(INDEX(Лист2!$D$1:$D$14,LARGE((MOD(Лист2!$D$2:$D$13,1)>=O$1)*(MOD(Лист2!$D$2:$D$13,1)<P$1)*(Лист2!$E$2:$E$13="y")*ROW(Лист2!$D$2:$D$13),SUMPRODUCT((MOD(Лист2!$D$2:$D$13,1)>=O$1)*(MOD(Лист2!$D$2:$D$13,1)<P$1)*(Лист2!$E$2:$E$13="y"))-ROW(Лист1!M1)+1)),1),"ч:мм "),"") ->  | P6: =IFERROR(TEXT(MOD(INDEX(Лист2!$D$1:$D$14,LARGE((MOD(Лист2!$D$2:$D$13,1)>=P$1)*(MOD(Лист2!$D$2:$D$13,1)<Q$1)*(Лист2!$E$2:$E$13="y")*ROW(Лист2!$D$2:$D$13),SUMPRODUCT((MOD(Лист2!$D$2:$D$13,1)>=P$1)*(MOD(Лист2!$D$2:$D$13,1)<Q$1)*(Лист2!$E$2:$E$13="y"))-ROW(Лист1!N1)+1)),1),"ч:мм "),"") ->  | Q6: =IFERROR(TEXT(MOD(INDEX(Лист2!$D$1:$D$14,LARGE((MOD(Лист2!$D$2:$D$13,1)>=Q$1)*(MOD(Лист2!$D$2:$D$13,1)<R$1)*(Лист2!$E$2:$E$13="y")*ROW(Лист2!$D$2:$D$13),SUMPRODUCT((MOD(Лист2!$D$2:$D$13,1)>=Q$1)*(MOD(Лист2!$D$2:$D$13,1)<R$1)*(Лист2!$E$2:$E$13="y"))-ROW(Лист1!O1)+1)),1),"ч:мм "),"") ->  | R6: =IFERROR(TEXT(MOD(INDEX(Лист2!$D$1:$D$14,LARGE((MOD(Лист2!$D$2:$D$13,1)>=R$1)*(MOD(Лист2!$D$2:$D$13,1)<S$1)*(Лист2!$E$2:$E$13="y")*ROW(Лист2!$D$2:$D$13),SUMPRODUCT((MOD(Лист2!$D$2:$D$13,1)>=R$1)*(MOD(Лист2!$D$2:$D$13,1)<S$1)*(Лист2!$E$2:$E$13="y"))-ROW(Лист1!P1)+1)),1),"ч:мм "),"") -> 11:54 | S6: =IFERROR(TEXT(MOD(INDEX(Лист2!$D$1:$D$14,LARGE((MOD(Лист2!$D$2:$D$13,1)>=S$1)*(MOD(Лист2!$D$2:$D$13,1)<T$1)*(Лист2!$E$2:$E$13="y")*ROW(Лист2!$D$2:$D$13),SUMPRODUCT((MOD(Лист2!$D$2:$D$13,1)>=S$1)*(MOD(Лист2!$D$2:$D$13,1)<T$1)*(Лист2!$E$2:$E$13="y"))-ROW(Лист1!Q1)+1)),1),"ч:мм "),"") ->  | T6: =IFERROR(TEXT(MOD(INDEX(Лист2!$D$1:$D$14,LARGE((MOD(Лист2!$D$2:$D$13,1)>=T$1)*(MOD(Лист2!$D$2:$D$13,1)<U$1)*(Лист2!$E$2:$E$13="y")*ROW(Лист2!$D$2:$D$13),SUMPRODUCT((MOD(Лист2!$D$2:$D$13,1)>=T$1)*(MOD(Лист2!$D$2:$D$13,1)<U$1)*(Лист2!$E$2:$E$13="y"))-ROW(Лист1!R1)+1)),1),"ч:мм "),"") ->  | U6: =IFERROR(TEXT(MOD(INDEX(Лист2!$D$1:$D$14,LARGE((MOD(Лист2!$D$2:$D$13,1)>=U$1)*(MOD(Лист2!$D$2:$D$13,1)<V$1)*(Лист2!$E$2:$E$13="y")*ROW(Лист2!$D$2:$D$13),SUMPRODUCT((MOD(Лист2!$D$2:$D$13,1)>=U$1)*(MOD(Лист2!$D$2:$D$13,1)<V$1)*(Лист2!$E$2:$E$13="y"))-ROW(Лист1!S1)+1)),1),"ч:мм "),"") ->  | V6: =IFERROR(TEXT(MOD(INDEX(Лист2!$D$1:$D$14,LARGE((MOD(Лист2!$D$2:$D$13,1)>=V$1)*(MOD(Лист2!$D$2:$D$13,1)<W$1)*(Лист2!$E$2:$E$13="y")*ROW(Лист2!$D$2:$D$13),SUMPRODUCT((MOD(Лист2!$D$2:$D$13,1)>=V$1)*(MOD(Лист2!$D$2:$D$13,1)<W$1)*(Лист2!$E$2:$E$13="y"))-ROW(Лист1!T1)+1)),1),"ч:мм "),"") ->  | W6: =IFERROR(TEXT(MOD(INDEX(Лист2!$D$1:$D$14,LARGE((MOD(Лист2!$D$2:$D$13,1)>=W$1)*(MOD(Лист2!$D$2:$D$13,1)<X$1)*(Лист2!$E$2:$E$13="y")*ROW(Лист2!$D$2:$D$13),SUMPRODUCT((MOD(Лист2!$D$2:$D$13,1)>=W$1)*(MOD(Лист2!$D$2:$D$13,1)<X$1)*(Лист2!$E$2:$E$13="y"))-ROW(Лист1!U1)+1)),1),"ч:мм "),"") ->  | X6: =IFERROR(TEXT(MOD(INDEX(Лист2!$D$1:$D$14,LARGE((MOD(Лист2!$D$2:$D$13,1)>=X$1)*(MOD(Лист2!$D$2:$D$13,1)<Y$1)*(Лист2!$E$2:$E$13="y")*ROW(Лист2!$D$2:$D$13),SUMPRODUCT((MOD(Лист2!$D$2:$D$13,1)>=X$1)*(MOD(Лист2!$D$2:$D$13,1)<Y$1)*(Лист2!$E$2:$E$13="y"))-ROW(Лист1!V1)+1)),1),"ч:мм "),"") ->  | Y6: =IFERROR(TEXT(MOD(INDEX(Лист2!$D$1:$D$14,LARGE((MOD(Лист2!$D$2:$D$13,1)>=Y$1)*(MOD(Лист2!$D$2:$D$13,1)<Z$1)*(Лист2!$E$2:$E$13="y")*ROW(Лист2!$D$2:$D$13),SUMPRODUCT((MOD(Лист2!$D$2:$D$13,1)>=Y$1)*(MOD(Лист2!$D$2:$D$13,1)<Z$1)*(Лист2!$E$2:$E$13="y"))-ROW(Лист1!W1)+1)),1),"ч:мм "),"") -> 13:43 | Z6: =IFERROR(TEXT(MOD(INDEX(Лист2!$D$1:$D$14,LARGE((MOD(Лист2!$D$2:$D$13,1)>=Z$1)*(MOD(Лист2!$D$2:$D$13,1)<AA$1)*(Лист2!$E$2:$E$13="y")*ROW(Лист2!$D$2:$D$13),SUMPRODUCT((MOD(Лист2!$D$2:$D$13,1)>=Z$1)*(MOD(Лист2!$D$2:$D$13,1)<AA$1)*(Лист2!$E$2:$E$13="y"))-ROW(Лист1!X1)+1)),1),"ч:мм "),"") ->  | AA6: =IFERROR(TEXT(MOD(INDEX(Лист2!$D$1:$D$14,LARGE((MOD(Лист2!$D$2:$D$13,1)>=AA$1)*(MOD(Лист2!$D$2:$D$13,1)<AB$1)*(Лист2!$E$2:$E$13="y")*ROW(Лист2!$D$2:$D$13),SUMPRODUCT((MOD(Лист2!$D$2:$D$13,1)>=AA$1)*(MOD(Лист2!$D$2:$D$13,1)<AB$1)*(Лист2!$E$2:$E$13="y"))-ROW(Лист1!Y1)+1)),1),"ч:мм "),"") ->  | AB6: =IFERROR(TEXT(MOD(INDEX(Лист2!$D$1:$D$14,LARGE((MOD(Лист2!$D$2:$D$13,1)>=AB$1)*(MOD(Лист2!$D$2:$D$13,1)<AC$1)*(Лист2!$E$2:$E$13="y")*ROW(Лист2!$D$2:$D$13),SUMPRODUCT((MOD(Лист2!$D$2:$D$13,1)>=AB$1)*(MOD(Лист2!$D$2:$D$13,1)<AC$1)*(Лист2!$E$2:$E$13="y"))-ROW(Лист1!Z1)+1)),1),"ч:мм "),"") ->  | AC6: =IFERROR(TEXT(MOD(INDEX(Лист2!$D$1:$D$14,LARGE((MOD(Лист2!$D$2:$D$13,1)>=AC$1)*(MOD(Лист2!$D$2:$D$13,1)<AD$1)*(Лист2!$E$2:$E$13="y")*ROW(Лист2!$D$2:$D$13),SUMPRODUCT((MOD(Лист2!$D$2:$D$13,1)>=AC$1)*(MOD(Лист2!$D$2:$D$13,1)<AD$1)*(Лист2!$E$2:$E$13="y"))-ROW(Лист1!AA1)+1)),1),"ч:мм "),"") ->  | AD6: =IFERROR(TEXT(MOD(INDEX(Лист2!$D$1:$D$14,LARGE((MOD(Лист2!$D$2:$D$13,1)>=AD$1)*(MOD(Лист2!$D$2:$D$13,1)<AE$1)*(Лист2!$E$2:$E$13="y")*ROW(Лист2!$D$2:$D$13),SUMPRODUCT((MOD(Лист2!$D$2:$D$13,1)>=AD$1)*(MOD(Лист2!$D$2:$D$13,1)<AE$1)*(Лист2!$E$2:$E$13="y"))-ROW(Лист1!AB1)+1)),1),"ч:мм "),"") ->  | AE6: =IFERROR(TEXT(MOD(INDEX(Лист2!$D$1:$D$14,LARGE((MOD(Лист2!$D$2:$D$13,1)>=AE$1)*(MOD(Лист2!$D$2:$D$13,1)<AF$1)*(Лист2!$E$2:$E$13="y")*ROW(Лист2!$D$2:$D$13),SUMPRODUCT((MOD(Лист2!$D$2:$D$13,1)>=AE$1)*(MOD(Лист2!$D$2:$D$13,1)<AF$1)*(Лист2!$E$2:$E$13="y"))-ROW(Лист1!AC1)+1)),1),"ч:мм "),"") ->  | AF6: =IFERROR(TEXT(MOD(INDEX(Лист2!$D$1:$D$14,LARGE((MOD(Лист2!$D$2:$D$13,1)>=AF$1)*(MOD(Лист2!$D$2:$D$13,1)<AG$1)*(Лист2!$E$2:$E$13="y")*ROW(Лист2!$D$2:$D$13),SUMPRODUCT((MOD(Лист2!$D$2:$D$13,1)>=AF$1)*(MOD(Лист2!$D$2:$D$13,1)<AG$1)*(Лист2!$E$2:$E$13="y"))-ROW(Лист1!AD1)+1)),1),"ч:мм "),"") ->  | AG6: =IFERROR(TEXT(MOD(INDEX(Лист2!$D$1:$D$14,LARGE((MOD(Лист2!$D$2:$D$13,1)>=AG$1)*(MOD(Лист2!$D$2:$D$13,1)<AH$1)*(Лист2!$E$2:$E$13="y")*ROW(Лист2!$D$2:$D$13),SUMPRODUCT((MOD(Лист2!$D$2:$D$13,1)>=AG$1)*(MOD(Лист2!$D$2:$D$13,1)<AH$1)*(Лист2!$E$2:$E$13="y"))-ROW(Лист1!AE1)+1)),1),"ч:мм "),"") -> 15:31 | AH6: =IFERROR(TEXT(MOD(INDEX(Лист2!$D$1:$D$14,LARGE((MOD(Лист2!$D$2:$D$13,1)>=AH$1)*(MOD(Лист2!$D$2:$D$13,1)<AI$1)*(Лист2!$E$2:$E$13="y")*ROW(Лист2!$D$2:$D$13),SUMPRODUCT((MOD(Лист2!$D$2:$D$13,1)>=AH$1)*(MOD(Лист2!$D$2:$D$13,1)<AI$1)*(Лист2!$E$2:$E$13="y"))-ROW(Лист1!AF1)+1)),1),"ч:мм "),"") ->  | AI6: =IFERROR(TEXT(MOD(INDEX(Лист2!$D$1:$D$14,LARGE((MOD(Лист2!$D$2:$D$13,1)>=AI$1)*(MOD(Лист2!$D$2:$D$13,1)<AJ$1)*(Лист2!$E$2:$E$13="y")*ROW(Лист2!$D$2:$D$13),SUMPRODUCT((MOD(Лист2!$D$2:$D$13,1)>=AI$1)*(MOD(Лист2!$D$2:$D$13,1)<AJ$1)*(Лист2!$E$2:$E$13="y"))-ROW(Лист1!AG1)+1)),1),"ч:мм "),"") ->  | AJ6: =IFERROR(TEXT(MOD(INDEX(Лист2!$D$1:$D$14,LARGE((MOD(Лист2!$D$2:$D$13,1)>=AJ$1)*(MOD(Лист2!$D$2:$D$13,1)<AK$1)*(Лист2!$E$2:$E$13="y")*ROW(Лист2!$D$2:$D$13),SUMPRODUCT((MOD(Лист2!$D$2:$D$13,1)>=AJ$1)*(MOD(Лист2!$D$2:$D$13,1)<AK$1)*(Лист2!$E$2:$E$13="y"))-ROW(Лист1!AH1)+1)),1),"ч:мм "),"") ->  | AK6: =IFERROR(TEXT(MOD(INDEX(Лист2!$D$1:$D$14,LARGE((MOD(Лист2!$D$2:$D$13,1)>=AK$1)*(MOD(Лист2!$D$2:$D$13,1)<AL$1)*(Лист2!$E$2:$E$13="y")*ROW(Лист2!$D$2:$D$13),SUMPRODUCT((MOD(Лист2!$D$2:$D$13,1)>=AK$1)*(MOD(Лист2!$D$2:$D$13,1)<AL$1)*(Лист2!$E$2:$E$13="y"))-ROW(Лист1!AI1)+1)),1),"ч:мм "),"") ->  | AL6: =IFERROR(TEXT(MOD(INDEX(Лист2!$D$1:$D$14,LARGE((MOD(Лист2!$D$2:$D$13,1)>=AL$1)*(MOD(Лист2!$D$2:$D$13,1)<AM$1)*(Лист2!$E$2:$E$13="y")*ROW(Лист2!$D$2:$D$13),SUMPRODUCT((MOD(Лист2!$D$2:$D$13,1)>=AL$1)*(MOD(Лист2!$D$2:$D$13,1)<AM$1)*(Лист2!$E$2:$E$13="y"))-ROW(Лист1!AJ1)+1)),1),"ч:мм "),"") ->  | AM6: =IFERROR(TEXT(MOD(INDEX(Лист2!$D$1:$D$14,LARGE((MOD(Лист2!$D$2:$D$13,1)>=AM$1)*(MOD(Лист2!$D$2:$D$13,1)<AN$1)*(Лист2!$E$2:$E$13="y")*ROW(Лист2!$D$2:$D$13),SUMPRODUCT((MOD(Лист2!$D$2:$D$13,1)>=AM$1)*(MOD(Лист2!$D$2:$D$13,1)<AN$1)*(Лист2!$E$2:$E$13="y"))-ROW(Лист1!AK1)+1)),1),"ч:мм "),"") ->  | AN6: =IFERROR(TEXT(MOD(INDEX(Лист2!$D$1:$D$14,LARGE((MOD(Лист2!$D$2:$D$13,1)>=AN$1)*(MOD(Лист2!$D$2:$D$13,1)<AO$1)*(Лист2!$E$2:$E$13="y")*ROW(Лист2!$D$2:$D$13),SUMPRODUCT((MOD(Лист2!$D$2:$D$13,1)>=AN$1)*(MOD(Лист2!$D$2:$D$13,1)<AO$1)*(Лист2!$E$2:$E$13="y"))-ROW(Лист1!AL1)+1)),1),"ч:мм "),"") -> 17:19 | AO6: =IFERROR(TEXT(MOD(INDEX(Лист2!$D$1:$D$14,LARGE((MOD(Лист2!$D$2:$D$13,1)>=AO$1)*(MOD(Лист2!$D$2:$D$13,1)<AP$1)*(Лист2!$E$2:$E$13="y")*ROW(Лист2!$D$2:$D$13),SUMPRODUCT((MOD(Лист2!$D$2:$D$13,1)>=AO$1)*(MOD(Лист2!$D$2:$D$13,1)<AP$1)*(Лист2!$E$2:$E$13="y"))-ROW(Лист1!AM1)+1)),1),"ч:мм "),"") ->  | AP6: =IFERROR(TEXT(MOD(INDEX(Лист2!$D$1:$D$14,LARGE((MOD(Лист2!$D$2:$D$13,1)>=AP$1)*(MOD(Лист2!$D$2:$D$13,1)<AQ$1)*(Лист2!$E$2:$E$13="y")*ROW(Лист2!$D$2:$D$13),SUMPRODUCT((MOD(Лист2!$D$2:$D$13,1)>=AP$1)*(MOD(Лист2!$D$2:$D$13,1)<AQ$1)*(Лист2!$E$2:$E$13="y"))-ROW(Лист1!AN1)+1)),1),"ч:мм "),"") ->  | AQ6: =IFERROR(TEXT(MOD(INDEX(Лист2!$D$1:$D$14,LARGE((MOD(Лист2!$D$2:$D$13,1)>=AQ$1)*(MOD(Лист2!$D$2:$D$13,1)<AR$1)*(Лист2!$E$2:$E$13="y")*ROW(Лист2!$D$2:$D$13),SUMPRODUCT((MOD(Лист2!$D$2:$D$13,1)>=AQ$1)*(MOD(Лист2!$D$2:$D$13,1)<AR$1)*(Лист2!$E$2:$E$13="y"))-ROW(Лист1!AO1)+1)),1),"ч:мм "),"") ->  | AR6: =IFERROR(TEXT(MOD(INDEX(Лист2!$D$1:$D$14,LARGE((MOD(Лист2!$D$2:$D$13,1)>=AR$1)*(MOD(Лист2!$D$2:$D$13,1)<AS$1)*(Лист2!$E$2:$E$13="y")*ROW(Лист2!$D$2:$D$13),SUMPRODUCT((MOD(Лист2!$D$2:$D$13,1)>=AR$1)*(MOD(Лист2!$D$2:$D$13,1)<AS$1)*(Лист2!$E$2:$E$13="y"))-ROW(Лист1!AP1)+1)),1),"ч:мм "),"") ->  | AS6: =IFERROR(TEXT(MOD(INDEX(Лист2!$D$1:$D$14,LARGE((MOD(Лист2!$D$2:$D$13,1)>=AS$1)*(MOD(Лист2!$D$2:$D$13,1)<AT$1)*(Лист2!$E$2:$E$13="y")*ROW(Лист2!$D$2:$D$13),SUMPRODUCT((MOD(Лист2!$D$2:$D$13,1)>=AS$1)*(MOD(Лист2!$D$2:$D$13,1)<AT$1)*(Лист2!$E$2:$E$13="y"))-ROW(Лист1!AQ1)+1)),1),"ч:мм "),"") ->  | AT6: =IFERROR(TEXT(MOD(INDEX(Лист2!$D$1:$D$14,LARGE((MOD(Лист2!$D$2:$D$13,1)>=AT$1)*(MOD(Лист2!$D$2:$D$13,1)<AU$1)*(Лист2!$E$2:$E$13="y")*ROW(Лист2!$D$2:$D$13),SUMPRODUCT((MOD(Лист2!$D$2:$D$13,1)>=AT$1)*(MOD(Лист2!$D$2:$D$13,1)<AU$1)*(Лист2!$E$2:$E$13="y"))-ROW(Лист1!AR1)+1)),1),"ч:мм "),"") ->  | AU6: =IFERROR(TEXT(MOD(INDEX(Лист2!$D$1:$D$14,LARGE((MOD(Лист2!$D$2:$D$13,1)>=AU$1)*(MOD(Лист2!$D$2:$D$13,1)<AV$1)*(Лист2!$E$2:$E$13="y")*ROW(Лист2!$D$2:$D$13),SUMPRODUCT((MOD(Лист2!$D$2:$D$13,1)>=AU$1)*(MOD(Лист2!$D$2:$D$13,1)<AV$1)*(Лист2!$E$2:$E$13="y"))-ROW(Лист1!AS1)+1)),1),"ч:мм "),"") -> 19:08 | AV6: =IFERROR(TEXT(MOD(INDEX(Лист2!$D$1:$D$14,LARGE((MOD(Лист2!$D$2:$D$13,1)>=AV$1)*(MOD(Лист2!$D$2:$D$13,1)<AW$1)*(Лист2!$E$2:$E$13="y")*ROW(Лист2!$D$2:$D$13),SUMPRODUCT((MOD(Лист2!$D$2:$D$13,1)>=AV$1)*(MOD(Лист2!$D$2:$D$13,1)<AW$1)*(Лист2!$E$2:$E$13="y"))-ROW(Лист1!AT1)+1)),1),"ч:мм "),"") ->  | AW6: =IFERROR(TEXT(MOD(INDEX(Лист2!$D$1:$D$14,LARGE((MOD(Лист2!$D$2:$D$13,1)>=AW$1)*(MOD(Лист2!$D$2:$D$13,1)<AX$1)*(Лист2!$E$2:$E$13="y")*ROW(Лист2!$D$2:$D$13),SUMPRODUCT((MOD(Лист2!$D$2:$D$13,1)>=AW$1)*(MOD(Лист2!$D$2:$D$13,1)<AX$1)*(Лист2!$E$2:$E$13="y"))-ROW(Лист1!AU1)+1)),1),"ч:мм "),"") ->  | AX6: =IFERROR(TEXT(MOD(INDEX(Лист2!$D$1:$D$14,LARGE((MOD(Лист2!$D$2:$D$13,1)>=AX$1)*(MOD(Лист2!$D$2:$D$13,1)<AY$1)*(Лист2!$E$2:$E$13="y")*ROW(Лист2!$D$2:$D$13),SUMPRODUCT((MOD(Лист2!$D$2:$D$13,1)>=AX$1)*(MOD(Лист2!$D$2:$D$13,1)<AY$1)*(Лист2!$E$2:$E$13="y"))-ROW(Лист1!AV1)+1)),1),"ч:мм "),"") ->  | AY6: =IFERROR(TEXT(MOD(INDEX(Лист2!$D$1:$D$14,LARGE((MOD(Лист2!$D$2:$D$13,1)>=AY$1)*(MOD(Лист2!$D$2:$D$13,1)<AZ$1)*(Лист2!$E$2:$E$13="y")*ROW(Лист2!$D$2:$D$13),SUMPRODUCT((MOD(Лист2!$D$2:$D$13,1)>=AY$1)*(MOD(Лист2!$D$2:$D$13,1)<AZ$1)*(Лист2!$E$2:$E$13="y"))-ROW(Лист1!AW1)+1)),1),"ч:мм "),"") -> 
A7: Х120 По факту | E7: =IF(E1<Лист2!$B$2:$I$2,IF(F1>Лист2!$B$2:$I$2,Лист2!$B$2:$I$2,""),"") ->  | F7: =IF(F1<Лист2!$B$2:$I$2,IF(G1>Лист2!$B$2:$I$2,Лист2!$B$2:$I$2,""),"") ->  | G7: =IF(G1<Лист2!$B$2:$I$2,IF(H1>Лист2!$B$2:$I$2,Лист2!$B$2:$I$2,""),"") ->  | H7: =IF(H1<Лист2!$B$2:$I$2,IF(I1>Лист2!$B$2:$I$2,Лист2!$B$2:$I$2,""),"") ->  | I7: =IF(I1<Лист2!$B$2:$I$2,IF(J1>Лист2!$B$2:$I$2,Лист2!$B$2:$I$2,""),"") ->  | J7: =IF(J1<Лист2!$B$2:$I$2,IF(K1>Лист2!$B$2:$I$2,Лист2!$B$2:$I$2,""),"") ->  | K7: =IF(K1<Лист2!$B$2:$I$2,IF(L1>Лист2!$B$2:$I$2,Лист2!$B$2:$I$2,""),"") ->  | L7: =IF(L1<Лист2!$B$2:$I$2,IF(M1>Лист2!$B$2:$I$2,Лист2!$B$2:$I$2,""),"") ->  | M7: =IF(M1<Лист2!$B$2:$I$2,IF(N1>Лист2!$B$2:$I$2,Лист2!$B$2:$I$2,""),"") ->  | N7: =IF(N1<Лист2!$B$2:$I$2,IF(O1>Лист2!$B$2:$I$2,Лист2!$B$2:$I$2,""),"") ->  | O7: =IF(O1<Лист2!$B$2:$I$2,IF(P1>Лист2!$B$2:$I$2,Лист2!$B$2:$I$2,""),"") ->  | P7: =IF(P1<Лист2!$B$2:$I$2,IF(Q1>Лист2!$B$2:$I$2,Лист2!$B$2:$I$2,""),"") ->  | Q7: =IF(Q1<Лист2!$B$2:$I$2,IF(R1>Лист2!$B$2:$I$2,Лист2!$B$2:$I$2,""),"") ->  | R7: =IF(R1<Лист2!$B$2:$I$2,IF(S1>Лист2!$B$2:$I$2,Лист2!$B$2:$I$2,""),"") ->  | S7: =IF(S1<Лист2!$B$2:$I$2,IF(T1>Лист2!$B$2:$I$2,Лист2!$B$2:$I$2,""),"") ->  | T7: =IF(T1<Лист2!$B$2:$I$2,IF(U1>Лист2!$B$2:$I$2,Лист2!$B$2:$I$2,""),"") ->  | U7: =IF(U1<Лист2!$B$2:$I$2,IF(V1>Лист2!$B$2:$I$2,Лист2!$B$2:$I$2,""),"") ->  | V7: =IF(V1<Лист2!$B$2:$I$2,IF(W1>Лист2!$B$2:$I$2,Лист2!$B$2:$I$2,""),"") ->  | W7: =IF(W1<Лист2!$B$2:$I$2,IF(X1>Лист2!$B$2:$I$2,Лист2!$B$2:$I$2,""),"") ->  | X7: =IF(X1<Лист2!$B$2:$I$2,IF(Y1>Лист2!$B$2:$I$2,Лист2!$B$2:$I$2,""),"") ->  | Y7: =IF(Y1<Лист2!$B$2:$I$2,IF(Z1>Лист2!$B$2:$I$2,Лист2!$B$2:$I$2,""),"") ->  | Z7: =IF(Z1<Лист2!$B$2:$I$2,IF(AA1>Лист2!$B$2:$I$2,Лист2!$B$2:$I$2,""),"") ->  | AA7: =IF(AA1<Лист2!$B$2:$I$2,IF(AB1>Лист2!$B$2:$I$2,Лист2!$B$2:$I$2,""),"") ->  | AB7: =IF(AB1<Лист2!$B$2:$I$2,IF(AC1>Лист2!$B$2:$I$2,Лист2!$B$2:$I$2,""),"") ->  | AC7: =IF(AC1<Лист2!$B$2:$I$2,IF(AD1>Лист2!$B$2:$I$2,Лист2!$B$2:$I$2,""),"") ->  | AD7: =IF(AD1<Лист2!$B$2:$I$2,IF(AE1>Лист2!$B$2:$I$2,Лист2!$B$2:$I$2,""),"") ->  | AE7: =IF(AE1<Лист2!$B$2:$I$2,IF(AF1>Лист2!$B$2:$I$2,Лист2!$B$2:$I$2,""),"") ->  | AF7: =IF(AF1<Лист2!$B$2:$I$2,IF(AG1>Лист2!$B$2:$I$2,Лист2!$B$2:$I$2,""),"") ->  | AG7: =IF(AG1<Лист2!$B$2:$I$2,IF(AH1>Лист2!$B$2:$I$2,Лист2!$B$2:$I$2,""),"") ->  | AH7: =IF(AH1<Лист2!$B$2:$I$2,IF(AI1>Лист2!$B$2:$I$2,Лист2!$B$2:$I$2,""),"") ->  | AI7: =IF(AI1<Лист2!$B$2:$I$2,IF(AJ1>Лист2!$B$2:$I$2,Лист2!$B$2:$I$2,""),"") ->  | AJ7: =IF(AJ1<Лист2!$B$2:$I$2,IF(AK1>Лист2!$B$2:$I$2,Лист2!$B$2:$I$2,""),"") ->  | AK7: =IF(AK1<Лист2!$B$2:$I$2,IF(AL1>Лист2!$B$2:$I$2,Лист2!$B$2:$I$2,""),"") ->  | AL7: =IF(AL1<Лист2!$B$2:$I$2,IF(AM1>Лист2!$B$2:$I$2,Лист2!$B$2:$I$2,""),"") ->  | AM7: =IF(AM1<Лист2!$B$2:$I$2,IF(AN1>Лист2!$B$2:$I$2,Лист2!$B$2:$I$2,""),"") ->  | AN7: =IF(AN1<Лист2!$B$2:$I$2,IF(AO1>Лист2!$B$2:$I$2,Лист2!$B$2:$I$2,""),"") ->  | AO7: =IF(AO1<Лист2!$B$2:$I$2,IF(AP1>Лист2!$B$2:$I$2,Лист2!$B$2:$I$2,""),"") ->  | AP7: =IF(AP1<Лист2!$B$2:$I$2,IF(AQ1>Лист2!$B$2:$I$2,Лист2!$B$2:$I$2,""),"") ->  | AQ7: =IF(AQ1<Лист2!$B$2:$I$2,IF(AR1>Лист2!$B$2:$I$2,Лист2!$B$2:$I$2,""),"") ->  | AR7: =IF(AR1<Лист2!$B$2:$I$2,IF(AS1>Лист2!$B$2:$I$2,Лист2!$B$2:$I$2,""),"") ->  | AS7: =IF(AS1<Лист2!$B$2:$I$2,IF(AT1>Лист2!$B$2:$I$2,Лист2!$B$2:$I$2,""),"") ->  | AT7: =IF(AT1<Лист2!$B$2:$I$2,IF(AU1>Лист2!$B$2:$I$2,Лист2!$B$2:$I$2,""),"") ->  | AU7: =IF(AU1<Лист2!$B$2:$I$2,IF(AV1>Лист2!$B$2:$I$2,Лист2!$B$2:$I$2,""),"") ->  | AV7: =IF(AV1<Лист2!$B$2:$I$2,IF(AW1>Лист2!$B$2:$I$2,Лист2!$B$2:$I$2,""),"") ->  | AW7: =IF(AW1<Лист2!$B$2:$I$2,IF(AX1>Лист2!$B$2:$I$2,Лист2!$B$2:$I$2,""),"") ->  | AX7: =IF(AX1<Лист2!$B$2:$I$2,IF(AY1>Лист2!$B$2:$I$2,Лист2!$B$2:$I$2,""),"") ->  | AY7: =IF(AY1<Лист2!$B$2:$I$2,IF(AZ5>Лист2!$B$2:$I$2,Лист2!$B$2:$I$2,""),"") ->  | AZ7: =IF(AZ5<Лист2!$B$2:$I$2,IF(BA5>Лист2!$B$2:$I$2,Лист2!$B$2:$I$2,""),"") ->  | BA7: =IF(BA5<Лист2!$B$2:$I$2,IF(BB5>Лист2!$B$2:$I$2,Лист2!$B$2:$I$2,""),"") ->  | BB7: =IF(BB5<Лист2!$B$2:$I$2,IF(BC5>Лист2!$B$2:$I$2,Лист2!$B$2:$I$2,""),"") -> 
A10: Х101 По плану | D10: =IFERROR(TEXT(MOD(INDEX(Лист2!$F$1:$F$14,LARGE((MOD(Лист2!$F$2:$F$13,1)>=D$1)*(MOD(Лист2!$F$2:$F$13,1)<E$1)*(Лист2!$E$2:$E$13="y")*ROW(Лист2!$F$2:$F$13),SUMPRODUCT((MOD(Лист2!$F$2:$F$13,1)>=D$1)*(MOD(Лист2!$F$2:$F$13,1)<E$1)*(Лист2!$E$2:$E$13="y"))-ROW(Лист1!B1)+1)),1),"ч:мм "),"") -> 8:15 | E10: =IFERROR(TEXT(MOD(INDEX(Лист2!$F$1:$F$14,LARGE((MOD(Лист2!$F$2:$F$13,1)>=E$1)*(MOD(Лист2!$F$2:$F$13,1)<F$1)*(Лист2!$E$2:$E$13="y")*ROW(Лист2!$F$2:$F$13),SUMPRODUCT((MOD(Лист2!$F$2:$F$13,1)>=E$1)*(MOD(Лист2!$F$2:$F$13,1)<F$1)*(Лист2!$E$2:$E$13="y"))-ROW(Лист1!C1)+1)),1),"ч:мм "),"") ->  | F10: =IFERROR(TEXT(MOD(INDEX(Лист2!$F$1:$F$14,LARGE((MOD(Лист2!$F$2:$F$13,1)>=F$1)*(MOD(Лист2!$F$2:$F$13,1)<G$1)*(Лист2!$E$2:$E$13="y")*ROW(Лист2!$F$2:$F$13),SUMPRODUCT((MOD(Лист2!$F$2:$F$13,1)>=F$1)*(MOD(Лист2!$F$2:$F$13,1)<G$1)*(Лист2!$E$2:$E$13="y"))-ROW(Лист1!D1)+1)),1),"ч:мм "),"") ->  | G10: =IFERROR(TEXT(MOD(INDEX(Лист2!$F$1:$F$14,LARGE((MOD(Лист2!$F$2:$F$13,1)>=G$1)*(MOD(Лист2!$F$2:$F$13,1)<H$1)*(Лист2!$E$2:$E$13="y")*ROW(Лист2!$F$2:$F$13),SUMPRODUCT((MOD(Лист2!$F$2:$F$13,1)>=G$1)*(MOD(Лист2!$F$2:$F$13,1)<H$1)*(Лист2!$E$2:$E$13="y"))-ROW(Лист1!E1)+1)),1),"ч:мм "),"") ->  | H10: =IFERROR(TEXT(MOD(INDEX(Лист2!$F$1:$F$14,LARGE((MOD(Лист2!$F$2:$F$13,1)>=H$1)*(MOD(Лист2!$F$2:$F$13,1)<I$1)*(Лист2!$E$2:$E$13="y")*ROW(Лист2!$F$2:$F$13),SUMPRODUCT((MOD(Лист2!$F$2:$F$13,1)>=H$1)*(MOD(Лист2!$F$2:$F$13,1)<I$1)*(Лист2!$E$2:$E$13="y"))-ROW(Лист1!F1)+1)),1),"ч:мм "),"") ->  | I10: =IFERROR(TEXT(MOD(INDEX(Лист2!$F$1:$F$14,LARGE((MOD(Лист2!$F$2:$F$13,1)>=I$1)*(MOD(Лист2!$F$2:$F$13,1)<J$1)*(Лист2!$E$2:$E$13="y")*ROW(Лист2!$F$2:$F$13),SUMPRODUCT((MOD(Лист2!$F$2:$F$13,1)>=I$1)*(MOD(Лист2!$F$2:$F$13,1)<J$1)*(Лист2!$E$2:$E$13="y"))-ROW(Лист1!G1)+1)),1),"ч:мм "),"") -> 9:36 | J10: =IFERROR(TEXT(MOD(INDEX(Лист2!$F$1:$F$14,LARGE((MOD(Лист2!$F$2:$F$13,1)>=J$1)*(MOD(Лист2!$F$2:$F$13,1)<K$1)*(Лист2!$E$2:$E$13="y")*ROW(Лист2!$F$2:$F$13),SUMPRODUCT((MOD(Лист2!$F$2:$F$13,1)>=J$1)*(MOD(Лист2!$F$2:$F$13,1)<K$1)*(Лист2!$E$2:$E$13="y"))-ROW(Лист1!H1)+1)),1),"ч:мм "),"") ->  | K10: =IFERROR(TEXT(MOD(INDEX(Лист2!$F$1:$F$14,LARGE((MOD(Лист2!$F$2:$F$13,1)>=K$1)*(MOD(Лист2!$F$2:$F$13,1)<L$1)*(Лист2!$E$2:$E$13="y")*ROW(Лист2!$F$2:$F$13),SUMPRODUCT((MOD(Лист2!$F$2:$F$13,1)>=K$1)*(MOD(Лист2!$F$2:$F$13,1)<L$1)*(Лист2!$E$2:$E$13="y"))-ROW(Лист1!I1)+1)),1),"ч:мм "),"") ->  | L10: =IFERROR(TEXT(MOD(INDEX(Лист2!$F$1:$F$14,LARGE((MOD(Лист2!$F$2:$F$13,1)>=L$1)*(MOD(Лист2!$F$2:$F$13,1)<M$1)*(Лист2!$E$2:$E$13="y")*ROW(Лист2!$F$2:$F$13),SUMPRODUCT((MOD(Лист2!$F$2:$F$13,1)>=L$1)*(MOD(Лист2!$F$2:$F$13,1)<M$1)*(Лист2!$E$2:$E$13="y"))-ROW(Лист1!J1)+1)),1),"ч:мм "),"") ->  | M10: =IFERROR(TEXT(MOD(INDEX(Лист2!$F$1:$F$14,LARGE((MOD(Лист2!$F$2:$F$13,1)>=M$1)*(MOD(Лист2!$F$2:$F$13,1)<N$1)*(Лист2!$E$2:$E$13="y")*ROW(Лист2!$F$2:$F$13),SUMPRODUCT((MOD(Лист2!$F$2:$F$13,1)>=M$1)*(MOD(Лист2!$F$2:$F$13,1)<N$1)*(Лист2!$E$2:$E$13="y"))-ROW(Лист1!K1)+1)),1),"ч:мм "),"") ->  | N10: =IFERROR(TEXT(MOD(INDEX(Лист2!$F$1:$F$14,LARGE((MOD(Лист2!$F$2:$F$13,1)>=N$1)*(MOD(Лист2!$F$2:$F$13,1)<O$1)*(Лист2!$E$2:$E$13="y")*ROW(Лист2!$F$2:$F$13),SUMPRODUCT((MOD(Лист2!$F$2:$F$13,1)>=N$1)*(MOD(Лист2!$F$2:$F$13,1)<O$1)*(Лист2!$E$2:$E$13="y"))-ROW(Лист1!L1)+1)),1),"ч:мм "),"") -> 10:57 | O10: =IFERROR(TEXT(MOD(INDEX(Лист2!$F$1:$F$14,LARGE((MOD(Лист2!$F$2:$F$13,1)>=O$1)*(MOD(Лист2!$F$2:$F$13,1)<P$1)*(Лист2!$E$2:$E$13="y")*ROW(Лист2!$F$2:$F$13),SUMPRODUCT((MOD(Лист2!$F$2:$F$13,1)>=O$1)*(MOD(Лист2!$F$2:$F$13,1)<P$1)*(Лист2!$E$2:$E$13="y"))-ROW(Лист1!M1)+1)),1),"ч:мм "),"") ->  | P10: =IFERROR(TEXT(MOD(INDEX(Лист2!$F$1:$F$14,LARGE((MOD(Лист2!$F$2:$F$13,1)>=P$1)*(MOD(Лист2!$F$2:$F$13,1)<Q$1)*(Лист2!$E$2:$E$13="y")*ROW(Лист2!$F$2:$F$13),SUMPRODUCT((MOD(Лист2!$F$2:$F$13,1)>=P$1)*(MOD(Лист2!$F$2:$F$13,1)<Q$1)*(Лист2!$E$2:$E$13="y"))-ROW(Лист1!N1)+1)),1),"ч:мм "),"") ->  | Q10: =IFERROR(TEXT(MOD(INDEX(Лист2!$F$1:$F$14,LARGE((MOD(Лист2!$F$2:$F$13,1)>=Q$1)*(MOD(Лист2!$F$2:$F$13,1)<R$1)*(Лист2!$E$2:$E$13="y")*ROW(Лист2!$F$2:$F$13),SUMPRODUCT((MOD(Лист2!$F$2:$F$13,1)>=Q$1)*(MOD(Лист2!$F$2:$F$13,1)<R$1)*(Лист2!$E$2:$E$13="y"))-ROW(Лист1!O1)+1)),1),"ч:мм "),"") ->  | R10: =IFERROR(TEXT(MOD(INDEX(Лист2!$F$1:$F$14,LARGE((MOD(Лист2!$F$2:$F$13,1)>=R$1)*(MOD(Лист2!$F$2:$F$13,1)<S$1)*(Лист2!$E$2:$E$13="y")*ROW(Лист2!$F$2:$F$13),SUMPRODUCT((MOD(Лист2!$F$2:$F$13,1)>=R$1)*(MOD(Лист2!$F$2:$F$13,1)<S$1)*(Лист2!$E$2:$E$13="y"))-ROW(Лист1!P1)+1)),1),"ч:мм "),"") ->  | S10: =IFERROR(TEXT(MOD(INDEX(Лист2!$F$1:$F$14,LARGE((MOD(Лист2!$F$2:$F$13,1)>=S$1)*(MOD(Лист2!$F$2:$F$13,1)<T$1)*(Лист2!$E$2:$E$13="y")*ROW(Лист2!$F$2:$F$13),SUMPRODUCT((MOD(Лист2!$F$2:$F$13,1)>=S$1)*(MOD(Лист2!$F$2:$F$13,1)<T$1)*(Лист2!$E$2:$E$13="y"))-ROW(Лист1!Q1)+1)),1),"ч:мм "),"") ->  | T10: =IFERROR(TEXT(MOD(INDEX(Лист2!$F$1:$F$14,LARGE((MOD(Лист2!$F$2:$F$13,1)>=T$1)*(MOD(Лист2!$F$2:$F$13,1)<U$1)*(Лист2!$E$2:$E$13="y")*ROW(Лист2!$F$2:$F$13),SUMPRODUCT((MOD(Лист2!$F$2:$F$13,1)>=T$1)*(MOD(Лист2!$F$2:$F$13,1)<U$1)*(Лист2!$E$2:$E$13="y"))-ROW(Лист1!R1)+1)),1),"ч:мм "),"") -> 12:18 | U10: =IFERROR(TEXT(MOD(INDEX(Лист2!$F$1:$F$14,LARGE((MOD(Лист2!$F$2:$F$13,1)>=U$1)*(MOD(Лист2!$F$2:$F$13,1)<V$1)*(Лист2!$E$2:$E$13="y")*ROW(Лист2!$F$2:$F$13),SUMPRODUCT((MOD(Лист2!$F$2:$F$13,1)>=U$1)*(MOD(Лист2!$F$2:$F$13,1)<V$1)*(Лист2!$E$2:$E$13="y"))-ROW(Лист1!S1)+1)),1),"ч:мм "),"") ->  | V10: =IFERROR(TEXT(MOD(INDEX(Лист2!$F$1:$F$14,LARGE((MOD(Лист2!$F$2:$F$13,1)>=V$1)*(MOD(Лист2!$F$2:$F$13,1)<W$1)*(Лист2!$E$2:$E$13="y")*ROW(Лист2!$F$2:$F$13),SUMPRODUCT((MOD(Лист2!$F$2:$F$13,1)>=V$1)*(MOD(Лист2!$F$2:$F$13,1)<W$1)*(Лист2!$E$2:$E$13="y"))-ROW(Лист1!T1)+1)),1),"ч:мм "),"") ->  | W10: =IFERROR(TEXT(MOD(INDEX(Лист2!$F$1:$F$14,LARGE((MOD(Лист2!$F$2:$F$13,1)>=W$1)*(MOD(Лист2!$F$2:$F$13,1)<X$1)*(Лист2!$E$2:$E$13="y")*ROW(Лист2!$F$2:$F$13),SUMPRODUCT((MOD(Лист2!$F$2:$F$13,1)>=W$1)*(MOD(Лист2!$F$2:$F$13,1)<X$1)*(Лист2!$E$2:$E$13="y"))-ROW(Лист1!U1)+1)),1),"ч:мм "),"") ->  | X10: =IFERROR(TEXT(MOD(INDEX(Лист2!$F$1:$F$14,LARGE((MOD(Лист2!$F$2:$F$13,1)>=X$1)*(MOD(Лист2!$F$2:$F$13,1)<Y$1)*(Лист2!$E$2:$E$13="y")*ROW(Лист2!$F$2:$F$13),SUMPRODUCT((MOD(Лист2!$F$2:$F$13,1)>=X$1)*(MOD(Лист2!$F$2:$F$13,1)<Y$1)*(Лист2!$E$2:$E$13="y"))-ROW(Лист1!V1)+1)),1),"ч:мм "),"") ->  | Y10: =IFERROR(TEXT(MOD(INDEX(Лист2!$F$1:$F$14,LARGE((MOD(Лист2!$F$2:$F$13,1)>=Y$1)*(MOD(Лист2!$F$2:$F$13,1)<Z$1)*(Лист2!$E$2:$E$13="y")*ROW(Лист2!$F$2:$F$13),SUMPRODUCT((MOD(Лист2!$F$2:$F$13,1)>=Y$1)*(MOD(Лист2!$F$2:$F$13,1)<Z$1)*(Лист2!$E$2:$E$13="y"))-ROW(Лист1!W1)+1)),1),"ч:мм "),"") -> 13:40 | Z10: =IFERROR(TEXT(MOD(INDEX(Лист2!$F$1:$F$14,LARGE((MOD(Лист2!$F$2:$F$13,1)>=Z$1)*(MOD(Лист2!$F$2:$F$13,1)<AA$1)*(Лист2!$E$2:$E$13="y")*ROW(Лист2!$F$2:$F$13),SUMPRODUCT((MOD(Лист2!$F$2:$F$13,1)>=Z$1)*(MOD(Лист2!$F$2:$F$13,1)<AA$1)*(Лист2!$E$2:$E$13="y"))-ROW(Лист1!X1)+1)),1),"ч:мм "),"") ->  | AA10: =IFERROR(TEXT(MOD(INDEX(Лист2!$F$1:$F$14,LARGE((MOD(Лист2!$F$2:$F$13,1)>=AA$1)*(MOD(Лист2!$F$2:$F$13,1)<AB$1)*(Лист2!$E$2:$E$13="y")*ROW(Лист2!$F$2:$F$13),SUMPRODUCT((MOD(Лист2!$F$2:$F$13,1)>=AA$1)*(MOD(Лист2!$F$2:$F$13,1)<AB$1)*(Лист2!$E$2:$E$13="y"))-ROW(Лист1!Y1)+1)),1),"ч:мм "),"") ->  | AB10: =IFERROR(TEXT(MOD(INDEX(Лист2!$F$1:$F$14,LARGE((MOD(Лист2!$F$2:$F$13,1)>=AB$1)*(MOD(Лист2!$F$2:$F$13,1)<AC$1)*(Лист2!$E$2:$E$13="y")*ROW(Лист2!$F$2:$F$13),SUMPRODUCT((MOD(Лист2!$F$2:$F$13,1)>=AB$1)*(MOD(Лист2!$F$2:$F$13,1)<AC$1)*(Лист2!$E$2:$E$13="y"))-ROW(Лист1!Z1)+1)),1),"ч:мм "),"") ->  | AC10: =IFERROR(TEXT(MOD(INDEX(Лист2!$F$1:$F$14,LARGE((MOD(Лист2!$F$2:$F$13,1)>=AC$1)*(MOD(Лист2!$F$2:$F$13,1)<AD$1)*(Лист2!$E$2:$E$13="y")*ROW(Лист2!$F$2:$F$13),SUMPRODUCT((MOD(Лист2!$F$2:$F$13,1)>=AC$1)*(MOD(Лист2!$F$2:$F$13,1)<AD$1)*(Лист2!$E$2:$E$13="y"))-ROW(Лист1!AA1)+1)),1),"ч:мм "),"") ->  | AD10: =IFERROR(TEXT(MOD(INDEX(Лист2!$F$1:$F$14,LARGE((MOD(Лист2!$F$2:$F$13,1)>=AD$1)*(MOD(Лист2!$F$2:$F$13,1)<AE$1)*(Лист2!$E$2:$E$13="y")*ROW(Лист2!$F$2:$F$13),SUMPRODUCT((MOD(Лист2!$F$2:$F$13,1)>=AD$1)*(MOD(Лист2!$F$2:$F$13,1)<AE$1)*(Лист2!$E$2:$E$13="y"))-ROW(Лист1!AB1)+1)),1),"ч:мм "),"") ->  | AE10: =IFERROR(TEXT(MOD(INDEX(Лист2!$F$1:$F$14,LARGE((MOD(Лист2!$F$2:$F$13,1)>=AE$1)*(MOD(Лист2!$F$2:$F$13,1)<AF$1)*(Лист2!$E$2:$E$13="y")*ROW(Лист2!$F$2:$F$13),SUMPRODUCT((MOD(Лист2!$F$2:$F$13,1)>=AE$1)*(MOD(Лист2!$F$2:$F$13,1)<AF$1)*(Лист2!$E$2:$E$13="y"))-ROW(Лист1!AC1)+1)),1),"ч:мм "),"") -> 15:01 | AF10: =IFERROR(TEXT(MOD(INDEX(Лист2!$F$1:$F$14,LARGE((MOD(Лист2!$F$2:$F$13,1)>=AF$1)*(MOD(Лист2!$F$2:$F$13,1)<AG$1)*(Лист2!$E$2:$E$13="y")*ROW(Лист2!$F$2:$F$13),SUMPRODUCT((MOD(Лист2!$F$2:$F$13,1)>=AF$1)*(MOD(Лист2!$F$2:$F$13,1)<AG$1)*(Лист2!$E$2:$E$13="y"))-ROW(Лист1!AD1)+1)),1),"ч:мм "),"") ->  | AG10: =IFERROR(TEXT(MOD(INDEX(Лист2!$F$1:$F$14,LARGE((MOD(Лист2!$F$2:$F$13,1)>=AG$1)*(MOD(Лист2!$F$2:$F$13,1)<AH$1)*(Лист2!$E$2:$E$13="y")*ROW(Лист2!$F$2:$F$13),SUMPRODUCT((MOD(Лист2!$F$2:$F$13,1)>=AG$1)*(MOD(Лист2!$F$2:$F$13,1)<AH$1)*(Лист2!$E$2:$E$13="y"))-ROW(Лист1!AE1)+1)),1),"ч:мм "),"") ->  | AH10: =IFERROR(TEXT(MOD(INDEX(Лист2!$F$1:$F$14,LARGE((MOD(Лист2!$F$2:$F$13,1)>=AH$1)*(MOD(Лист2!$F$2:$F$13,1)<AI$1)*(Лист2!$E$2:$E$13="y")*ROW(Лист2!$F$2:$F$13),SUMPRODUCT((MOD(Лист2!$F$2:$F$13,1)>=AH$1)*(MOD(Лист2!$F$2:$F$13,1)<AI$1)*(Лист2!$E$2:$E$13="y"))-ROW(Лист1!AF1)+1)),1),"ч:мм "),"") ->  | AI10: =IFERROR(TEXT(MOD(INDEX(Лист2!$F$1:$F$14,LARGE((MOD(Лист2!$F$2:$F$13,1)>=AI$1)*(MOD(Лист2!$F$2:$F$13,1)<AJ$1)*(Лист2!$E$2:$E$13="y")*ROW(Лист2!$F$2:$F$13),SUMPRODUCT((MOD(Лист2!$F$2:$F$13,1)>=AI$1)*(MOD(Лист2!$F$2:$F$13,1)<AJ$1)*(Лист2!$E$2:$E$13="y"))-ROW(Лист1!AG1)+1)),1),"ч:мм "),"") ->  | AJ10: =IFERROR(TEXT(MOD(INDEX(Лист2!$F$1:$F$14,LARGE((MOD(Лист2!$F$2:$F$13,1)>=AJ$1)*(MOD(Лист2!$F$2:$F$13,1)<AK$1)*(Лист2!$E$2:$E$13="y")*ROW(Лист2!$F$2:$F$13),SUMPRODUCT((MOD(Лист2!$F$2:$F$13,1)>=AJ$1)*(MOD(Лист2!$F$2:$F$13,1)<AK$1)*(Лист2!$E$2:$E$13="y"))-ROW(Лист1!AH1)+1)),1),"ч:мм "),"") -> 16:22 | AK10: =IFERROR(TEXT(MOD(INDEX(Лист2!$F$1:$F$14,LARGE((MOD(Лист2!$F$2:$F$13,1)>=AK$1)*(MOD(Лист2!$F$2:$F$13,1)<AL$1)*(Лист2!$E$2:$E$13="y")*ROW(Лист2!$F$2:$F$13),SUMPRODUCT((MOD(Лист2!$F$2:$F$13,1)>=AK$1)*(MOD(Лист2!$F$2:$F$13,1)<AL$1)*(Лист2!$E$2:$E$13="y"))-ROW(Лист1!AI1)+1)),1),"ч:мм "),"") ->  | AL10: =IFERROR(TEXT(MOD(INDEX(Лист2!$F$1:$F$14,LARGE((MOD(Лист2!$F$2:$F$13,1)>=AL$1)*(MOD(Лист2!$F$2:$F$13,1)<AM$1)*(Лист2!$E$2:$E$13="y")*ROW(Лист2!$F$2:$F$13),SUMPRODUCT((MOD(Лист2!$F$2:$F$13,1)>=AL$1)*(MOD(Лист2!$F$2:$F$13,1)<AM$1)*(Лист2!$E$2:$E$13="y"))-ROW(Лист1!AJ1)+1)),1),"ч:мм "),"") ->  | AM10: =IFERROR(TEXT(MOD(INDEX(Лист2!$F$1:$F$14,LARGE((MOD(Лист2!$F$2:$F$13,1)>=AM$1)*(MOD(Лист2!$F$2:$F$13,1)<AN$1)*(Лист2!$E$2:$E$13="y")*ROW(Лист2!$F$2:$F$13),SUMPRODUCT((MOD(Лист2!$F$2:$F$13,1)>=AM$1)*(MOD(Лист2!$F$2:$F$13,1)<AN$1)*(Лист2!$E$2:$E$13="y"))-ROW(Лист1!AK1)+1)),1),"ч:мм "),"") ->  | AN10: =IFERROR(TEXT(MOD(INDEX(Лист2!$F$1:$F$14,LARGE((MOD(Лист2!$F$2:$F$13,1)>=AN$1)*(MOD(Лист2!$F$2:$F$13,1)<AO$1)*(Лист2!$E$2:$E$13="y")*ROW(Лист2!$F$2:$F$13),SUMPRODUCT((MOD(Лист2!$F$2:$F$13,1)>=AN$1)*(MOD(Лист2!$F$2:$F$13,1)<AO$1)*(Лист2!$E$2:$E$13="y"))-ROW(Лист1!AL1)+1)),1),"ч:мм "),"") ->  | AO10: =IFERROR(TEXT(MOD(INDEX(Лист2!$F$1:$F$14,LARGE((MOD(Лист2!$F$2:$F$13,1)>=AO$1)*(MOD(Лист2!$F$2:$F$13,1)<AP$1)*(Лист2!$E$2:$E$13="y")*ROW(Лист2!$F$2:$F$13),SUMPRODUCT((MOD(Лист2!$F$2:$F$13,1)>=AO$1)*(MOD(Лист2!$F$2:$F$13,1)<AP$1)*(Лист2!$E$2:$E$13="y"))-ROW(Лист1!AM1)+1)),1),"ч:мм "),"") -> 17:43 | AP10: =IFERROR(TEXT(MOD(INDEX(Лист2!$F$1:$F$14,LARGE((MOD(Лист2!$F$2:$F$13,1)>=AP$1)*(MOD(Лист2!$F$2:$F$13,1)<AQ$1)*(Лист2!$E$2:$E$13="y")*ROW(Лист2!$F$2:$F$13),SUMPRODUCT((MOD(Лист2!$F$2:$F$13,1)>=AP$1)*(MOD(Лист2!$F$2:$F$13,1)<AQ$1)*(Лист2!$E$2:$E$13="y"))-ROW(Лист1!AN1)+1)),1),"ч:мм "),"") ->  | AQ10: =IFERROR(TEXT(MOD(INDEX(Лист2!$F$1:$F$14,LARGE((MOD(Лист2!$F$2:$F$13,1)>=AQ$1)*(MOD(Лист2!$F$2:$F$13,1)<AR$1)*(Лист2!$E$2:$E$13="y")*ROW(Лист2!$F$2:$F$13),SUMPRODUCT((MOD(Лист2!$F$2:$F$13,1)>=AQ$1)*(MOD(Лист2!$F$2:$F$13,1)<AR$1)*(Лист2!$E$2:$E$13="y"))-ROW(Лист1!AO1)+1)),1),"ч:мм "),"") ->  | AR10: =IFERROR(TEXT(MOD(INDEX(Лист2!$F$1:$F$14,LARGE((MOD(Лист2!$F$2:$F$13,1)>=AR$1)*(MOD(Лист2!$F$2:$F$13,1)<AS$1)*(Лист2!$E$2:$E$13="y")*ROW(Лист2!$F$2:$F$13),SUMPRODUCT((MOD(Лист2!$F$2:$F$13,1)>=AR$1)*(MOD(Лист2!$F$2:$F$13,1)<AS$1)*(Лист2!$E$2:$E$13="y"))-ROW(Лист1!AP1)+1)),1),"ч:мм "),"") ->  | AS10: =IFERROR(TEXT(MOD(INDEX(Лист2!$F$1:$F$14,LARGE((MOD(Лист2!$F$2:$F$13,1)>=AS$1)*(MOD(Лист2!$F$2:$F$13,1)<AT$1)*(Лист2!$E$2:$E$13="y")*ROW(Лист2!$F$2:$F$13),SUMPRODUCT((MOD(Лист2!$F$2:$F$13,1)>=AS$1)*(MOD(Лист2!$F$2:$F$13,1)<AT$1)*(Лист2!$E$2:$E$13="y"))-ROW(Лист1!AQ1)+1)),1),"ч:мм "),"") ->  | AT10: =IFERROR(TEXT(MOD(INDEX(Лист2!$F$1:$F$14,LARGE((MOD(Лист2!$F$2:$F$13,1)>=AT$1)*(MOD(Лист2!$F$2:$F$13,1)<AU$1)*(Лист2!$E$2:$E$13="y")*ROW(Лист2!$F$2:$F$13),SUMPRODUCT((MOD(Лист2!$F$2:$F$13,1)>=AT$1)*(MOD(Лист2!$F$2:$F$13,1)<AU$1)*(Лист2!$E$2:$E$13="y"))-ROW(Лист1!AR1)+1)),1),"ч:мм "),"") ->  | AU10: =IFERROR(TEXT(MOD(INDEX(Лист2!$F$1:$F$14,LARGE((MOD(Лист2!$F$2:$F$13,1)>=AU$1)*(MOD(Лист2!$F$2:$F$13,1)<AV$1)*(Лист2!$E$2:$E$13="y")*ROW(Лист2!$F$2:$F$13),SUMPRODUCT((MOD(Лист2!$F$2:$F$13,1)>=AU$1)*(MOD(Лист2!$F$2:$F$13,1)<AV$1)*(Лист2!$E$2:$E$13="y"))-ROW(Лист1!AS1)+1)),1),"ч:мм "),"") -> 19:05 | AV10: =IFERROR(TEXT(MOD(INDEX(Лист2!$F$1:$F$14,LARGE((MOD(Лист2!$F$2:$F$13,1)>=AV$1)*(MOD(Лист2!$F$2:$F$13,1)<AW$1)*(Лист2!$E$2:$E$13="y")*ROW(Лист2!$F$2:$F$13),SUMPRODUCT((MOD(Лист2!$F$2:$F$13,1)>=AV$1)*(MOD(Лист2!$F$2:$F$13,1)<AW$1)*(Лист2!$E$2:$E$13="y"))-ROW(Лист1!AT1)+1)),1),"ч:мм "),"") ->  | AW10: =IFERROR(TEXT(MOD(INDEX(Лист2!$F$1:$F$14,LARGE((MOD(Лист2!$F$2:$F$13,1)>=AW$1)*(MOD(Лист2!$F$2:$F$13,1)<AX$1)*(Лист2!$E$2:$E$13="y")*ROW(Лист2!$F$2:$F$13),SUMPRODUCT((MOD(Лист2!$F$2:$F$13,1)>=AW$1)*(MOD(Лист2!$F$2:$F$13,1)<AX$1)*(Лист2!$E$2:$E$13="y"))-ROW(Лист1!AU1)+1)),1),"ч:мм "),"") ->  | AX10: =IFERROR(TEXT(MOD(INDEX(Лист2!$F$1:$F$14,LARGE((MOD(Лист2!$F$2:$F$13,1)>=AX$1)*(MOD(Лист2!$F$2:$F$13,1)<AY$1)*(Лист2!$E$2:$E$13="y")*ROW(Лист2!$F$2:$F$13),SUMPRODUCT((MOD(Лист2!$F$2:$F$13,1)>=AX$1)*(MOD(Лист2!$F$2:$F$13,1)<AY$1)*(Лист2!$E$2:$E$13="y"))-ROW(Лист1!AV1)+1)),1),"ч:мм "),"") ->  | AY10: =IFERROR(TEXT(MOD(INDEX(Лист2!$F$1:$F$14,LARGE((MOD(Лист2!$F$2:$F$13,1)>=AY$1)*(MOD(Лист2!$F$2:$F$13,1)<AZ$1)*(Лист2!$E$2:$E$13="y")*ROW(Лист2!$F$2:$F$13),SUMPRODUCT((MOD(Лист2!$F$2:$F$13,1)>=AY$1)*(MOD(Лист2!$F$2:$F$13,1)<AZ$1)*(Лист2!$E$2:$E$13="y"))-ROW(Лист1!AW1)+1)),1),"ч:мм "),"") -> 
A11: Х101 По факту
A14: Время выгрузки последнего вагона ЛВПх2 | B14: 08:18:00
A15: время выгрузки последнего вагона Х101 | B15: 08:18:00 | U15: 45323.62097
A16: время выгрузки последнего вагона Х 160 | B16: 08:15:00
A20: План ЛВП | B20: 15
A21: План Х120 | B21: 6
A22: План Х101 | B22: 8

Sheet Лист2
B1: 07:00:00 | C1: 07:15:00 | D1: 07:30:00
B2: =Лист1!B14 -> 08:18:00 | C2: z | D2: =Лист1!B15 -> 08:18:00 | E2: y | F2: =Лист1!B16 -> 08:15:00
B3: =$B2+$G$23 -> 09:44:40 | C3: z | D3: =$D2+$G$24 -> 10:06:20 | E3: y | F3: =$F2+$G$25 -> 09:36:15
B4: =$B3+$G$23 -> 11:11:20 | C4: z | D4: =$D3+$G$24 -> 11:54:40 | E4: y | F4: =$F3+$G$25 -> 10:57:30
B5: 12:38:00 | C5: z | D5: 13:43:00 | E5: y | F5: 12:18:45
B6: 14:04:40 | C6: z | D6: 15:31:20 | E6: y | F6: 13:40:00
B7: 15:31:20 | C7: z | D7: 17:19:40 | E7: y | F7: 15:01:15
B8: 16:58:00 | C8: z | D8: 19:08:00 | E8: y | F8: 16:22:30
B9: 18:24:40 | C9: z | D9: 20:56:20 | E9: y | F9: 17:43:45
B10: 19:51:20 | C10: z | D10: 22:44:40 | E10: y | F10: 19:05:00
B11: 21:18:00 | C11: z | D11: =$D10+$G$24 -> 1.022916667 | E11: y | F11: 20:26:15
B12: 22:44:40 | C12: z | D12: 1.098148148 | E12: y | F12: 21:47:30 | N12: =B3+G24 -> 11:33:00 | O12: =B4+G25 -> 12:32:35
B13: 1.00787037 | C13: z | D13: =$D12+$G$24 -> 1.17337963 | E13: y | N13: =N12+G24 -> 13:21:20 | O13: =O12+G25 -> 13:53:50
N14: =N13+G24 -> 15:09:40 | O14: =O13+G25 -> 15:15:05
B15: ЛВП | D15: Х120 | F15: X101 | N15: =N14+G24 -> 16:58:00 | O15: =O14+G25 -> 16:36:20
N16: =N15+G24 -> 18:46:20 | O16: =O15+G25 -> 17:57:35
N17: =N16+G24 -> 20:34:40 | O17: =O16+G25 -> 19:18:50
N18: =N17+G24 -> 22:23:00 | O18: =O17+G25 -> 20:40:05
N19: =N18+G24 -> 1.00787037 | O19: =O18+G25 -> 22:01:20
B20: Время такта(мин.) | F20: ЛВП | G20: Х120 | H20: х101 | N20: =N19+G24 -> 1.083101852 | O20: =O19+G25 -> 23:22:35
A21: лвп x2шт | B21: 65 | E21: коэф | F21: =B25/(B26/2*B21) -> 1.333333333 | G21: =B25/(B27*B22) -> 1.50462963 | H21: =B25/(B28*B22) -> 1.128472222 | N21: =N20+G24 -> 1.158333333 | O21: =O20+G25 -> 1.030439815
A22: Х120 | B22: 72 | N22: =N21+G24 -> 1.233564815 | O22: =O21+G25 -> 1.086863426
A23: Х101 | B23: 72 | E23: время такта ЛВП от плана | F23: =(B21*F21) -> 86.66666667 | G23: =F23*TIME(0,1,0) -> 01:26:40 | N23: =N22+G24 -> 1.308796296 | O23: =O22+G25 -> 1.143287037
E24: время такта Х120 от плана | F24: =(B22*G21) -> 108.3333333 | G24: =F24*TIME(0,1,0) -> 01:48:20 | N24: =N23+G24 -> 1.384027778 | O24: =O23+G25 -> 1.199710648
A25: Фонд общего рабочего времени | B25: 650 | E25: время такта Х160 от плана | F25: =(B22*H21) -> 81.25 | G25: =F25*TIME(0,1,0) -> 01:21:15 | N25: =N24+G24 -> 1.459259259 | O25: =O24+G25 -> 1.256134259
A26: План ЛВП | B26: =Лист1!B20 -> 15
A27: план Х120 | B27: =Лист1!B21 -> 6
A28: план Х101 | B28: =Лист1!B22 -> 8
